Workbook

Sheet INGRESO DE DATOS
A11: Cotización de Seguro Médico - Bupa Global Health Plans
A13: 1. INGRESE LOS DATOS DEL PROPUESTO ASEGURADO : | J13: Diligenciar, solo si aplica otros dependientes, incluir edad. Edad máxima para otros dependientes hasta 24 años.
B15: Nombre del asegurado titular : | D15: JUAN VIDAL | J15: Otros dependientes: | K15: ID | L15: Edad
K16: 1 | L16: 1 | M16: =IF(ISBLANK(L16),TRUE,AND(L16 >= 18,L16 <= 45,E25)) -> FALSE
B17: Número de adultos en la póliza : | D17: 2 | F17: Número de hijos en la póliza : | H17: 0 | K17: 2 | L17: 5 | M17: =IF(ISBLANK(L17),TRUE,AND(L17 >= 18,L17 <= 45,E26)) -> FALSE
K18: 3 | L18: 8 | M18: FALSE
B19: Edad del asegurado titular : | D19: 18 | E19: =AND(D19 >= 18,D19 <= 45,E25) -> FALSE | F19: Edad del (de la) cónyuge : | H19: 18 | I19: =IF(D17>1,AND(H19 >= 18,H19 <= 45,E25),TRUE) -> FALSE | K19: 4 | M19: TRUE
K20: 5 | M20: TRUE
C21: Aplica descuento especial del 10%: | E21: FALSE | F21: *Descuento especial aplica para todos los productos globales a excepción de Select PE. *Descuento por pago fraccionado aplica para todos los productos globales.
C23: Aplica descuento por pago fraccionado: | E23: FALSE
E25: FALSE
D26: =1-(IF(E21,0.1,0)+IF(AND(E19,I19,M16,M17,M18,M19,M20),0.1,0)) -> 1 | E26: =1-IF(E21,0.1,0) -> 1
A27: 2. INGRESE EL NOMBRE DE LA AGENCIA ASESORA :
B29: Agencia / Agente : | D29: Nombre del Agente
A31: 3. ESCOJA EL PRODUCTO PARA VISUALIZAR LA COTIZACION RESPECTIVA :

Sheet Global Major Medical Health Pla
M28: FALSE
B29: Nombre del asegurado titular : | C29: =+'INGRESO DE DATOS'!$D$15 -> JUAN VIDAL | K29: Deducibles | M29: PLAN 1 | N29: PLAN 2
K30: Dentro del país de residencia | M30: 10000 | N30: 20000
B31: Agencia / Agente : | C31: =+'INGRESO DE DATOS'!$D$29 -> Nombre del Agente | K31: Fuera del país de residencia | M31: 10000 | N31: 20000
D33: Número de adultos en la póliza : | F33: =+'INGRESO DE DATOS'!$D$17 -> 2 | H33: Edad del asegurado titular : | I33: =+'INGRESO DE DATOS'!$D$19 -> 18 | K33: TARIFAS ANUALES
K34: Prima del asegurado titular : | M34: =VLOOKUP($I$33,Tablas!$A$905:$G$971,3,TRUE)*'INGRESO DE DATOS'!$D$26+(Tablas!$Q$2) -> 34562.5 | N34: =VLOOKUP($I$33,Tablas!$A$905:$G$971,4,TRUE)*'INGRESO DE DATOS'!$D$26+(Tablas!$Q$2) -> 25400
D35: Número de hijos en la póliza : | F35: =+'INGRESO DE DATOS'!$H$17 -> 0 | H35: Edad del (de la) cónyuge : | I35: =+'INGRESO DE DATOS'!$H$19 -> 18 | K35: Prima del (de la) cónyuge: | M35: =(IF($F$33=1,0,(VLOOKUP($I$35,Tablas!$A$905:$G$971,3,TRUE))))*'INGRESO DE DATOS'!$D$26+(IF($F$33=1,0,(Tablas!$Q$2))) -> 34562.5 | N35: =(IF($F$33=1,0,(VLOOKUP($I$35,Tablas!$A$905:$G$971,4,TRUE))))*'INGRESO DE DATOS'!$D$26+(IF($F$33=1,0,(Tablas!$Q$2))) -> 25400
K36: Prima del (de los) Hijo (s) : | M36: =(IF($F$35=0,0,(VLOOKUP($F$35,Tablas!$A$972:$G$974,3,TRUE))))*'INGRESO DE DATOS'!$D$26 -> 0 | N36: =(IF($F$35=0,0,(VLOOKUP($F$35,Tablas!$A$972:$G$974,4,TRUE))))*'INGRESO DE DATOS'!$D$26 -> 0
C37: FECHA DE COTIZACION : | E37: =NOW() -> 2024-03-11T10:41:48.230 | K37: Total otros dependientes | M37: =Tablas!Q911*'INGRESO DE DATOS'!$D$26 -> 101812.5 | N37: =Tablas!R911*'INGRESO DE DATOS'!$D$26 -> 74325
K38: TOTAL PRIMA NETA : | M38: =SUM(M34:M37) -> 170937.5 | N38: =SUM(N34:N37) -> 125125
K39: Costo administrativo anual : | M39: 937.5 | N39: 937.5
K40: IVA (16%) : | M40: =+M38*16% -> 27350 | N40: =+N38*16% -> 20020
K41: =IF('INGRESO DE DATOS'!$D$26=0.8,"Costo total, (-20% de descuento)",IF('INGRESO DE DATOS'!$D$26=0.9,"Costo total, (-10% de descuento)","Gran total anual")) -> Gran total anual | M41: =SUM(M38:M40) + M39*0.16 -> 199375 | N41: =SUM(N38:N40) + N39*0.16 -> 146232.5
K43: TARIFAS SEMESTRALES
K44: Prima del asegurado titular : | M44: =M34*(1+Tablas!$K$4) -> 36117.8125 | N44: =N34*(1+Tablas!$K$4) -> 26543
K45: Prima del (de la) cónyuge: | M45: =M35*(1+Tablas!$K$4) -> 36117.8125 | N45: =N35*(1+Tablas!$K$4) -> 26543
K46: Prima del (de los) Hijo (s) : | M46: =M36*(1+Tablas!$K$4) -> 0 | N46: =N36*(1+Tablas!$K$4) -> 0
K47: =K37 -> Total otros dependientes | M47: =M37*(1+Tablas!$K$4) -> 106394.0625 | N47: =N37*(1+Tablas!$K$4) -> 77669.625
K48: TOTAL PRIMA NETA : | M48: =SUM(M44:M47) -> 178629.6875 | N48: =SUM(N44:N47) -> 130755.625
K49: Costo administrativo anual : | M49: 937.5 | N49: 937.5
K50: IVA (16%) : | M50: =SUM(M48:M49)*16% -> 28730.75 | N50: =SUM(N48:N49)*16% -> 21070.9
K51: TOTAL primera cuota : | M51: =((M48/2)+M49)*1.16 -> 104692.7188 | N51: =((N48/2)+N49)*1.16 -> 76925.7625
K52: Valor segunda cuota : | M52: =M48/2*1.16 -> 103605.2188 | N52: =N48/2*1.16 -> 75838.2625
K53: =K41 -> Gran total anual | M53: =M51+M52 -> 208297.9375 | N53: =N51+N52 -> 152764.025
K55: TARIFAS TRIMESTRALES
K56: Prima del asegurado titular : | M56: =M34*(1+Tablas!$K$3) -> 37154.6875 | N56: =N34*(1+Tablas!$K$3) -> 27305
K57: Prima del (de la) cónyuge: | M57: =M35*(1+Tablas!$K$3) -> 37154.6875 | N57: =N35*(1+Tablas!$K$3) -> 27305
K58: Prima del (de los) Hijo (s) : | M58: =M36*(1+Tablas!$K$3) -> 0 | N58: =N36*(1+Tablas!$K$3) -> 0
K59: =K47 -> Total otros dependientes | M59: =M37*(1+Tablas!$K$3) -> 109448.4375 | N59: =N37*(1+Tablas!$K$3) -> 79899.375
K60: TOTAL PRIMA NETA : | M60: =SUM(M56:M59) -> 183757.8125 | N60: =SUM(N56:N59) -> 134509.375
K61: Costo administrativo anual : | M61: 937.5 | N61: 937.5
K62: IVA (16%) : | M62: =SUM(M60:M61)*16% -> 29551.25 | N62: =SUM(N60:N61)*16% -> 21671.5
K63: TOTAL primera cuota : | M63: =((M60/4)+M61)*1.16 -> 54377.26562 | N63: =((N60/4)+N61)*1.16 -> 40095.21875
K64: Valor cuota trimestral 2 a 4: | M64: =M60/4*1.16 -> 53289.76562 | N64: =N60/4*1.16 -> 39007.71875
K65: =K53 -> Gran total anual | M65: =M63+(M64*3) -> 214246.5625 | N65: =N63+(N64*3) -> 157118.375
K67: TARIFAS MENSUALES
K68: Prima del asegurado titular : | M68: =M34*(1+Tablas!$K$2) -> 37673.125 | N68: =N34*(1+Tablas!$K$2) -> 27686
B69: Tarifas validas a partir del 1 de marzo al 31 de diciembre del 2024. | K69: Prima del (de la) cónyuge: | M69: =M35*(1+Tablas!$K$2) -> 37673.125 | N69: =N35*(1+Tablas!$K$2) -> 27686
B70: Promociones válidas al 31 de diciembre de 2024. | K70: Prima del (de los) Hijo (s) : | M70: =M36*(1+Tablas!$K$2) -> 0 | N70: =N36*(1+Tablas!$K$2) -> 0
B71: El 10% de descuento en productos Globales sobre prima neta será aplicable durante toda la vida de la póliza, siempre y cuando el asegurado no haga cambios en el plan y deducibles contratados. | K71: =K59 -> Total otros dependientes | M71: =M37*(1+Tablas!$K$2) -> 110975.625 | N71: =N37*(1+Tablas!$K$2) -> 81014.25
B72: 6 meses sin intereses sin cargo al agente para modalidad de pago anual durante el primer año póliza con tarjetas de crédito participantes: Afirme, Azteca, Bajío, Banjercito, Banorte, Banregio, BBVA, Citibanamex, Famsa, HSBC, Inbursa, Invex, IXE, Liverpool, Mifel, Multiva, Santander, Scotiabank, Sociedad de Facilidades Multirotativas y American Express. Promoción válida sólo para tarjetas emitidas en la República Mexicana. | K72: TOTAL PRIMA NETA : | M72: =SUM(M68:M71) -> 186321.875 | N72: =SUM(N68:N71) -> 136386.25
B73: En caso de que el asegurado elija la promoción “Sin costo por pago fraccionado” no podrá optar por la promoción a meses sin intereses. | K73: Costo administrativo anual : | M73: 937.5 | N73: 937.5
B74: Las pólizas contratadas cuentan con limitaciones y exclusiones las cuáles pueden ser consultadas en www.bupasalud.com.mx Para más información, llámanos al 55 5202-1701 ext 4 o envíanos un correo a: ventasdirectas@bupa.com.mx | K74: IVA (16%) : | M74: =SUM(M72:M73)*16% -> 29961.5 | N74: =SUM(N72:N73)*16% -> 21971.8
B75: La presente cotización es de carácter informativo, no constituye una solicitud de seguro y/o el monto de la prima definitiva y/o las condiciones de la misma y/o una oferta de aseguramiento en términos del artículo 5to de la Ley Sobre el Contrato de Seguro. La emisión de la póliza asícomo posibles cambios en la tarifa están sujetos a valoración del riesgo de acuerdo con las políticas de Suscripción de Bupa México y es susceptible de modificaciones, por lo que Bupa podrá aceptar o negar el aseguramiento del riesgo propuesto. | K75: TOTAL primera cuota : | M75: =((M72/12)+M73)*1.16 -> 19098.61458 | N75: =((N72/12)+N73)*1.16 -> 14271.50417
K76: Valor cuota mensual 2 a 12 : | M76: =M72/12*1.16 -> 18011.11458 | N76: =N72/12*1.16 -> 13184.00417
K77: =K65 -> Gran total anual | M77: =M75+(M76*11) -> 217220.875 | N77: =N75+(N76*11) -> 159295.55

Sheet Global Select Health Plan
M32: FALSE
B33: Nombre del asegurado titular : | C33: =+'INGRESO DE DATOS'!$D$15 -> JUAN VIDAL | K33: Deducibles | M33: PLAN A | N33: PLAN 1 | O33: PLAN 2 | P33: PLAN 3 | Q33: PLAN 4
K34: Dentro del país de residencia | M34: 2000 | N34: 3500 | O34: 5000 | P34: 10000 | Q34: 20000
B35: Agencia / Agente : | C35: =+'INGRESO DE DATOS'!$D$29 -> Nombre del Agente | K35: Fuera del país de residencia | M35: 2000 | N35: 3500 | O35: 5000 | P35: 10000 | Q35: 20000
K37: TARIFAS ANUALES
B38: Número de adultos en la póliza : | C38: =+'INGRESO DE DATOS'!$D$17 -> 2 | F38: Edad del asegurado titular : | G38: =+'INGRESO DE DATOS'!$D$19 -> 18 | H38: =VLOOKUP($C$38,Tablas!A1503:B1504,2,0) -> 625 | K38: Prima del asegurado titular : | M38: =(VLOOKUP($G$38,Tablas!$A$305:$G$371,3,TRUE))*'INGRESO DE DATOS'!$D$26+(Tablas!$Q$2) -> 51300 | N38: =(VLOOKUP($G$38,Tablas!$A$305:$G$371,4,TRUE))*'INGRESO DE DATOS'!$D$26+(Tablas!$Q$2) -> 43425 | O38: =(VLOOKUP($G$38,Tablas!$A$305:$G$371,5,TRUE))*'INGRESO DE DATOS'!$D$26+(Tablas!$Q$2) -> 38462.5 | P38: =(VLOOKUP($G$38,Tablas!$A$305:$G$371,6,TRUE))*'INGRESO DE DATOS'!$D$26+(Tablas!$Q$2) -> 25862.5 | Q38: =(VLOOKUP($G$38,Tablas!$A$305:$G$371,7,TRUE))*'INGRESO DE DATOS'!$D$26+(Tablas!$Q$2) -> 20500
K39: Prima del (de la) cónyuge: | M39: =(IF($C$38=1,0,(VLOOKUP($G$40,Tablas!$A$305:$G$371,3,TRUE))))*'INGRESO DE DATOS'!$D$26+(IF($C$38=1,0,(Tablas!$Q$2))) -> 51300 | N39: =(IF($C$38=1,0,(VLOOKUP($G$40,Tablas!$A$305:$G$371,4,TRUE))))*'INGRESO DE DATOS'!$D$26+(IF($C$38=1,0,(Tablas!$Q$2))) -> 43425 | O39: =(IF($C$38=1,0,(VLOOKUP($G$40,Tablas!$A$305:$G$371,5,TRUE))))*'INGRESO DE DATOS'!$D$26+(IF($C$38=1,0,(Tablas!$Q$2))) -> 38462.5 | P39: =(IF($C$38=1,0,(VLOOKUP($G$40,Tablas!$A$305:$G$371,6,TRUE))))*'INGRESO DE DATOS'!$D$26+(IF($C$38=1,0,(Tablas!$Q$2))) -> 25862.5 | Q39: =(IF($C$38=1,0,(VLOOKUP($G$40,Tablas!$A$305:$G$371,7,TRUE))))*'INGRESO DE DATOS'!$D$26+(IF($C$38=1,0,(Tablas!$Q$2))) -> 20500
B40: Número de hijos en la póliza : | C40: =+'INGRESO DE DATOS'!$H$17 -> 0 | F40: Edad del (de la) cónyuge : | G40: =+'INGRESO DE DATOS'!$H$19 -> 18 | K40: Prima del (de los) Hijo (s) : | M40: =(IF($C$40=0,0,(VLOOKUP($C$40,Tablas!$A$372:$G$374,3,TRUE))))*'INGRESO DE DATOS'!$D$26 -> 0 | N40: =(IF($C$40=0,0,(VLOOKUP($C$40,Tablas!$A$372:$G$374,4,TRUE))))*'INGRESO DE DATOS'!$D$26 -> 0 | O40: =(IF($C$40=0,0,(VLOOKUP($C$40,Tablas!$A$372:$G$374,5,TRUE))))*'INGRESO DE DATOS'!$D$26 -> 0 | P40: =(IF($C$40=0,0,(VLOOKUP($C$40,Tablas!$A$372:$G$374,6,TRUE))))*'INGRESO DE DATOS'!$D$26 -> 0 | Q40: =(IF($C$40=0,0,(VLOOKUP($C$40,Tablas!$A$372:$G$374,7,TRUE))))*'INGRESO DE DATOS'!$D$26 -> 0
K41: Total otros dependientes | M41: =Tablas!Q306 * 'INGRESO DE DATOS'!$D$26 -> 50675 | N41: =Tablas!R306 * 'INGRESO DE DATOS'!$D$26 -> 42800 | O41: =Tablas!S306 * 'INGRESO DE DATOS'!$D$26 -> 37837.5 | P41: =Tablas!T306 * 'INGRESO DE DATOS'!$D$26 -> 25237.5 | Q41: =Tablas!U306 * 'INGRESO DE DATOS'!$D$26 -> 19875
B42: FECHA DE COTIZACION : | D42: =NOW() -> 2024-03-11T10:41:48.210 | K42: TOTAL PRIMA NETA : | M42: =SUM(M38:M41) -> 153275 | N42: =SUM(N38:N41) -> 129650 | O42: 114762.5 | P42: 76962.5 | Q42: 60875
K43: Costo administrativo anual : | M43: 937.5 | N43: 937.5 | O43: 937.5 | P43: 937.5 | Q43: 937.5
K44: IVA (16%) : | M44: =SUM(M42:M43)*16% -> 24674 | N44: =SUM(N42:N43)*16% -> 20894 | O44: 18512 | P44: 12464 | Q44: 9890
K45: =IF('INGRESO DE DATOS'!$D$26=0.8,"Costo total, (-20% de descuento)",IF('INGRESO DE DATOS'!$D$26=0.9,"Costo total, (-10% de descuento)","Gran total anual")) -> Gran total anual | M45: =SUM(M42:M44) -> 178886.5 | N45: =SUM(N42:N44) -> 151481.5 | O45: 134212 | P45: 90364 | Q45: 71702.5
K47: TARIFAS SEMESTRALES
K48: Prima del asegurado titular : | M48: =M38*(1+Tablas!$K$4) -> 53608.5 | N48: =N38*(1+Tablas!$K$4) -> 45379.125 | O48: =O38*(1+Tablas!$K$4) -> 40193.3125 | P48: =P38*(1+Tablas!$K$4) -> 27026.3125 | Q48: =Q38*(1+Tablas!$K$4) -> 21422.5
K49: Prima del (de la) cónyuge: | M49: =M39*(1+Tablas!$K$4) -> 53608.5 | N49: =N39*(1+Tablas!$K$4) -> 45379.125 | O49: =O39*(1+Tablas!$K$4) -> 40193.3125 | P49: =P39*(1+Tablas!$K$4) -> 27026.3125 | Q49: =Q39*(1+Tablas!$K$4) -> 21422.5
K50: Prima del (de los) Hijo (s) : | M50: =M40*(1+Tablas!$K$4) -> 0 | N50: =N40*(1+Tablas!$K$4) -> 0 | O50: =O40*(1+Tablas!$K$4) -> 0 | P50: =P40*(1+Tablas!$K$4) -> 0 | Q50: =Q40*(1+Tablas!$K$4) -> 0
K51: Total otros dependientes | M51: =M41*(1+Tablas!$K$4) -> 52955.375 | N51: =N41*(1+Tablas!$K$4) -> 44726 | O51: =O41*(1+Tablas!$K$4) -> 39540.1875 | P51: =P41*(1+Tablas!$K$4) -> 26373.1875 | Q51: =Q41*(1+Tablas!$K$4) -> 20769.375
K52: TOTAL PRIMA NETA : | M52: =SUM(M48:M51) -> 160172.375 | N52: =SUM(N48:N51) -> 135484.25 | O52: 119926.8125 | P52: 80425.8125 | Q52: =SUM(Q48:Q51) -> 63614.375
K53: Costo administrativo anual : | M53: 937.5 | N53: 937.5 | O53: 937.5 | P53: 937.5 | Q53: 937.5
K54: IVA (16%) : | M54: =SUM(M52:M53)*16% -> 25777.58 | N54: =SUM(N52:N53)*16% -> 21827.48 | O54: 19338.29 | P54: =SUM(P52:P53)*16% -> 13018.13 | Q54: 10328.3
K55: TOTAL primera cuota : | M55: =((M52/2)+M53)*1.16 -> 93987.4775 | N55: =((N52/2)+N53)*1.16 -> 79668.365 | O55: 70645.05125 | P55: 47734.47125 | Q55: 37983.8375
K56: Valor segunda cuota : | M56: =M52/2*1.16 -> 92899.9775 | N56: =N52/2*1.16 -> 78580.865 | O56: 69557.55125 | P56: 46646.97125 | Q56: 36896.3375
K57: =K45 -> Gran total anual | M57: =+M55+M56 -> 186887.455 | N57: =+N55+N56 -> 158249.23 | O57: 140202.6025 | P57: =+P55+P56 -> 94381.4425 | Q57: 74880.175
K59: TARIFAS TRIMESTRALES
K60: Prima del asegurado titular : | M60: =M38*(1+Tablas!$K$3) -> 55147.5 | N60: =N38*(1+Tablas!$K$3) -> 46681.875 | O60: =O38*(1+Tablas!$K$3) -> 41347.1875 | P60: =P38*(1+Tablas!$K$3) -> 27802.1875 | Q60: =Q38*(1+Tablas!$K$3) -> 22037.5
K61: Prima del (de la) cónyuge: | M61: =M39*(1+Tablas!$K$3) -> 55147.5 | N61: =N39*(1+Tablas!$K$3) -> 46681.875 | O61: =O39*(1+Tablas!$K$3) -> 41347.1875 | P61: =P39*(1+Tablas!$K$3) -> 27802.1875 | Q61: =Q39*(1+Tablas!$K$3) -> 22037.5
K62: Prima del (de los) Hijo (s) : | M62: =M40*(1+Tablas!$K$3) -> 0 | N62: =N40*(1+Tablas!$K$3) -> 0 | O62: =O40*(1+Tablas!$K$3) -> 0 | P62: =P40*(1+Tablas!$K$3) -> 0 | Q62: =Q40*(1+Tablas!$K$3) -> 0
K63: Total otros dependientes | M63: =M41*(1+Tablas!$K$3) -> 54475.625 | N63: =N41*(1+Tablas!$K$3) -> 46010 | O63: =O41*(1+Tablas!$K$3) -> 40675.3125 | P63: =P41*(1+Tablas!$K$3) -> 27130.3125 | Q63: =Q41*(1+Tablas!$K$3) -> 21365.625
K64: TOTAL PRIMA NETA : | M64: =SUM(M60:M63) -> 164770.625 | N64: =SUM(N60:N63) -> 139373.75 | O64: 123369.6875 | P64: 82734.6875 | Q64: =SUM(Q60:Q63) -> 65440.625
K65: Costo administrativo anual : | M65: 937.5 | N65: 937.5 | O65: 937.5 | P65: 937.5 | Q65: 937.5
K66: IVA (16%) : | M66: =SUM(M64:M65)*16% -> 26513.3 | N66: =SUM(N64:N65)*16% -> 22449.8 | O66: =SUM(O64:O65)*16% -> 19889.15 | P66: =SUM(P64:P65)*16% -> 13387.55 | Q66: 10620.5
K67: TOTAL primera cuota : | M67: =((M64/4)+M65)*1.16 -> 48870.98125 | N67: =((N64/4)+N65)*1.16 -> 41505.8875 | O67: =((O64/4)+O65)*1.16 -> 36864.70937 | P67: 25080.55937 | Q67: 20065.28125
K68: Valor cuota trimestral 2 a 4: | M68: =M64/4*1.16 -> 47783.48125 | N68: =N64/4*1.16 -> 40418.3875 | O68: 35777.20937 | P68: 23993.05937 | Q68: 18977.78125
K69: =K57 -> Gran total anual | M69: =M67+(M68*3) -> 192221.425 | N69: =N67+(N68*3) -> 162761.05 | O69: =O67+(O68*3) -> 144196.3375 | P69: =P67+(P68*3) -> 97059.7375 | Q69: 76998.625
K71: TARIFAS MENSUALES
K72: Prima del asegurado titular : | M72: =M38*(1+Tablas!$K$2) -> 55917 | N72: =N38*(1+Tablas!$K$2) -> 47333.25 | O72: =O38*(1+Tablas!$K$2) -> 41924.125 | P72: =P38*(1+Tablas!$K$2) -> 28190.125 | Q72: =Q38*(1+Tablas!$K$2) -> 22345
B73: Tarifas validas a partir del 1 de marzo al 31 de diciembre del 2024. | K73: Prima del (de la) cónyuge: | M73: =M39*(1+Tablas!$K$2) -> 55917 | N73: =N39*(1+Tablas!$K$2) -> 47333.25 | O73: =O39*(1+Tablas!$K$2) -> 41924.125 | P73: =P39*(1+Tablas!$K$2) -> 28190.125 | Q73: =Q39*(1+Tablas!$K$2) -> 22345
B74: Promociones válidas al 31 de diciembre de 2024. | K74: Prima del (de los) Hijo (s) : | M74: =M40*(1+Tablas!$K$2) -> 0 | N74: =N40*(1+Tablas!$K$2) -> 0 | O74: =O40*(1+Tablas!$K$2) -> 0 | P74: =P40*(1+Tablas!$K$2) -> 0 | Q74: =Q40*(1+Tablas!$K$2) -> 0
B75: El 10% de descuento en productos Globales sobre prima neta será aplicable durante toda la vida de la póliza, siempre y cuando el asegurado no haga cambios en el plan y deducibles contratados. | K75: Total otros dependientes | M75: =M41*(1+Tablas!$K$2) -> 55235.75 | N75: =N41*(1+Tablas!$K$2) -> 46652 | O75: =O41*(1+Tablas!$K$2) -> 41242.875 | P75: =P41*(1+Tablas!$K$2) -> 27508.875 | Q75: =Q41*(1+Tablas!$K$2) -> 21663.75
B76: 6 meses sin intereses sin cargo al agente para modalidad de pago anual durante el primer año póliza con tarjetas de crédito participantes: Afirme, Azteca, Bajío, Banjercito, Banorte, Banregio, BBVA, Citibanamex, Famsa, HSBC, Inbursa, Invex, IXE, Liverpool, Mifel, Multiva, Santander, Scotiabank, Sociedad de Facilidades Multirotativas y American Express. Promoción válida sólo para tarjetas emitidas en la República Mexicana. | K76: TOTAL PRIMA NETA : | M76: =SUM(M72:M75) -> 167069.75 | N76: =SUM(N72:N75) -> 141318.5 | O76: 125091.125 | P76: 83889.125 | Q76: =SUM(Q72:Q75) -> 66353.75
B77: En caso de que el asegurado elija la promoción “Sin costo por pago fraccionado” no podrá optar por la promoción a meses sin intereses. | K77: Costo administrativo anual : | M77: 937.5 | N77: 937.5 | O77: 937.5 | P77: 937.5 | Q77: 937.5
B78: Las pólizas contratadas cuentan con limitaciones y exclusiones las cuáles pueden ser consultadas en www.bupasalud.com.mx Para más información, llámanos al 55 5202-1701 ext 4 o envíanos un correo a: ventasdirectas@bupa.com.mx | K78: IVA (16%) : | M78: =SUM(M76:M77)*16% -> 26881.16 | N78: =SUM(N76:N77)*16% -> 22760.96 | O78: 20164.58 | P78: =SUM(P76:P77)*16% -> 13572.26 | Q78: 10766.6
B79: La presente cotización es de carácter informativo, no constituye una solicitud de seguro y/o el monto de la prima definitiva y/o las condiciones de la misma y/o una oferta de aseguramiento en términos del artículo 5to de la Ley Sobre el Contrato de Seguro. La emisión de la póliza asícomo posibles cambios en la tarifa están sujetos a valoración del riesgo de acuerdo con las políticas de Suscripción de Bupa México y es susceptible de modificaciones, por lo que Bupa podrá aceptar o negar el aseguramiento del riesgo propuesto. | K79: TOTAL primera cuota : | M79: =((M76/12)+M77)*1.16 -> 17237.57583 | N79: =((N76/12)+N77)*1.16 -> 14748.28833 | O79: 13179.64208 | P79: 9196.782083 | Q79: 7501.695833
K80: Valor cuota mensual 2 a 12 : | M80: =M76/12*1.16 -> 16150.07583 | N80: =N76/12*1.16 -> 13660.78833 | O80: 12092.14208 | P80: 8109.282083 | Q80: 6414.195833
K81: =K69 -> Gran total anual | M81: =M79+(M80*11) -> 194888.41 | N81: =N79+(N80*11) -> 165016.96 | O81: =O79+(O80*11) -> 146193.205 | P81: =P79+(P80*11) -> 98398.885 | Q81: 78057.85

Sheet Global Premier Health Plan
B36: Nombre del asegurado titular : | C36: =+'INGRESO DE DATOS'!$D$15 -> JUAN VIDAL | L36: Deducibles | N36: PLAN A | O36: PLAN 1 | P36: PLAN 2 | Q36: PLAN 3
L37: Dentro del país de residencia | N37: 1000 | O37: 2000 | P37: 5000 | Q37: 10000
B38: Agencia / Agente : | C38: =+'INGRESO DE DATOS'!$D$29 -> Nombre del Agente | L38: Fuera del país de residencia | N38: 1000 | O38: 2000 | P38: 5000 | Q38: 10000
C40: Número de adultos en la póliza : | D40: =+'INGRESO DE DATOS'!$D$17 -> 2 | F40: Edad del asegurado titular : | G40: =+'INGRESO DE DATOS'!$D$19 -> 18 | I40: =VLOOKUP($D$40,Tablas!A1503:B1504,2,0) -> 625 | L40: TARIFAS ANUALES
L41: Prima del asegurado titular : | N41: =(VLOOKUP($G$40,Tablas!$A$155:$G$221,3,TRUE))*'INGRESO DE DATOS'!$D$26+(Tablas!$Q$2) -> 110650 | O41: =(VLOOKUP($G$40,Tablas!$A$155:$G$221,4,TRUE))*'INGRESO DE DATOS'!$D$26+(Tablas!$Q$2) -> 80062.5 | P41: =(VLOOKUP($G$40,Tablas!$A$155:$G$221,5,TRUE))*'INGRESO DE DATOS'!$D$26+(Tablas!$Q$2) -> 56025 | Q41: =(VLOOKUP($G$40,Tablas!$A$155:$G$221,6,TRUE))*'INGRESO DE DATOS'!$D$26+(Tablas!$Q$2) -> 42437.5
C42: Número de hijos en la póliza : | D42: =+'INGRESO DE DATOS'!$H$17 -> 0 | F42: Edad del (de la) cónyuge : | G42: =+'INGRESO DE DATOS'!$H$19 -> 18 | L42: Prima del (de la) cónyuge: | N42: =(IF($D$40=1,0,(VLOOKUP($G$42,Tablas!$A$155:$G$221,3,TRUE))))*'INGRESO DE DATOS'!$D$26+(IF($D$40=1,0,(Tablas!$Q$2))) -> 110650 | O42: =(IF($D$40=1,0,(VLOOKUP($G$42,Tablas!$A$155:$G$221,4,TRUE))))*'INGRESO DE DATOS'!$D$26+(IF($D$40=1,0,(Tablas!$Q$2))) -> 80062.5 | P42: =(IF($D$40=1,0,(VLOOKUP($G$42,Tablas!$A$155:$G$221,5,TRUE))))*'INGRESO DE DATOS'!$D$26+(IF($D$40=1,0,(Tablas!$Q$2))) -> 56025 | Q42: =(IF($D$40=1,0,(VLOOKUP($G$42,Tablas!$A$155:$G$221,6,TRUE))))*'INGRESO DE DATOS'!$D$26+(IF($D$40=1,0,(Tablas!$Q$2))) -> 42437.5
L43: Prima del (de los) Hijo (s) : | N43: =(IF($D$42=0,0,(VLOOKUP($D$42,Tablas!$A$222:$G$224,3,TRUE))))*'INGRESO DE DATOS'!$D$26 -> 0 | O43: =(IF($D$42=0,0,(VLOOKUP($D$42,Tablas!$A$222:$G$224,4,TRUE))))*'INGRESO DE DATOS'!$D$26 -> 0 | P43: =(IF($D$42=0,0,(VLOOKUP($D$42,Tablas!$A$222:$G$224,5,TRUE))))*'INGRESO DE DATOS'!$D$26 -> 0 | Q43: =(IF($D$42=0,0,(VLOOKUP($D$42,Tablas!$A$222:$G$224,6,TRUE))))*'INGRESO DE DATOS'!$D$26 -> 0
B44: FECHA DE COTIZACION : | D44: =NOW() -> 2024-03-11T10:41:48.210 | L44: Total otros dependientes | N44: =Tablas!Q156*'INGRESO DE DATOS'!$D$26 -> 110025 | O44: =Tablas!R156*'INGRESO DE DATOS'!$D$26 -> 79437.5 | P44: =Tablas!S156*'INGRESO DE DATOS'!$D$26 -> 55400 | Q44: =Tablas!T156*'INGRESO DE DATOS'!$D$26 -> 41812.5
L45: TOTAL PRIMA NETA : | N45: =SUM(N41:N44) -> 331325 | O45: =SUM(O41:O44) -> 239562.5 | P45: 167450 | Q45: 126687.5
L46: Costo administrativo anual : | N46: 937.5 | O46: 937.5 | P46: 937.5 | Q46: 937.5
L47: IVA (16%) : | N47: =SUM(N45:N46)*16% -> 53162 | O47: =SUM(O45:O46)*16% -> 38480 | P47: =SUM(P45:P46)*16% -> 26942 | Q47: 20420
L48: =IF('INGRESO DE DATOS'!$D$26=0.8,"Costo total, (-20% de descuento)",IF('INGRESO DE DATOS'!$D$26=0.9,"Costo total, (-10% de descuento)","Gran total anual")) -> Gran total anual | N48: =SUM(N45:N47) -> 385424.5 | O48: =SUM(O45:O47) -> 278980 | P48: =SUM(P45:P47) -> 195329.5 | Q48: 148045
L50: TARIFAS SEMESTRALES
L51: Prima del asegurado titular : | N51: =N41*(1+Tablas!$K$4) -> 115629.25 | O51: =O41*(1+Tablas!$K$4) -> 83665.3125 | P51: =P41*(1+Tablas!$K$4) -> 58546.125 | Q51: =Q41*(1+Tablas!$K$4) -> 44347.1875
L52: Prima del (de la) cónyuge: | N52: =N42*(1+Tablas!$K$4) -> 115629.25 | O52: =O42*(1+Tablas!$K$4) -> 83665.3125 | P52: =P42*(1+Tablas!$K$4) -> 58546.125 | Q52: =Q42*(1+Tablas!$K$4) -> 44347.1875
L53: Prima del (de los) Hijo (s) : | N53: =N43*(1+Tablas!$K$4) -> 0 | O53: =O43*(1+Tablas!$K$4) -> 0 | P53: =P43*(1+Tablas!$K$4) -> 0 | Q53: =Q43*(1+Tablas!$K$4) -> 0
L54: Total otros dependientes | N54: =N44*(1+Tablas!$K$4) -> 114976.125 | O54: =O44*(1+Tablas!$K$4) -> 83012.1875 | P54: =P44*(1+Tablas!$K$4) -> 57893 | Q54: =Q44*(1+Tablas!$K$4) -> 43694.0625
L55: TOTAL PRIMA NETA : | N55: =SUM(N51:N54) -> 346234.625 | O55: =SUM(O51:O54) -> 250342.8125 | P55: 174985.25 | Q55: 132388.4375
L56: Costo administrativo anual : | N56: 937.5 | O56: 937.5 | P56: 937.5 | Q56: 937.5
L57: IVA (16%) : | N57: =SUM(N55:N56)*16% -> 55547.54 | O57: =SUM(O55:O56)*16% -> 40204.85 | P57: 28147.64 | Q57: 21332.15
L58: TOTAL primera cuota : | N58: =((N55/2)+N56)*1.16 -> 201903.5825 | O58: =((O55/2)+O56)*1.16 -> 146286.3312 | P58: =((P55/2)+P56)*1.16 -> 102578.945 | Q58: 77872.79375
L59: Valor segunda cuota : | N59: =N55/2*1.16 -> 200816.0825 | O59: =O55/2*1.16 -> 145198.8312 | P59: =P55/2*1.16 -> 101491.445 | Q59: 76785.29375
L60: =L48 -> Gran total anual | N60: =N58+N59 -> 402719.665 | O60: =O58+O59 -> 291485.1625 | P60: =P58+P59 -> 204070.39 | Q60: =Q58+Q59 -> 154658.0875
L62: TARIFAS TRIMESTRALES
L63: Prima del asegurado titular : | N63: =N41*(1+Tablas!$K$3) -> 118948.75 | O63: =O41*(1+Tablas!$K$3) -> 86067.1875 | P63: =P41*(1+Tablas!$K$3) -> 60226.875 | Q63: =Q41*(1+Tablas!$K$3) -> 45620.3125
L64: Prima del (de la) cónyuge: | N64: =N42*(1+Tablas!$K$3) -> 118948.75 | O64: =O42*(1+Tablas!$K$3) -> 86067.1875 | P64: =P42*(1+Tablas!$K$3) -> 60226.875 | Q64: =Q42*(1+Tablas!$K$3) -> 45620.3125
L65: Prima del (de los) Hijo (s) : | N65: =N43*(1+Tablas!$K$3) -> 0 | O65: =O43*(1+Tablas!$K$3) -> 0 | P65: =P43*(1+Tablas!$K$3) -> 0 | Q65: =Q43*(1+Tablas!$K$3) -> 0
L66: Total otros dependientes | N66: =N44*(1+Tablas!$K$3) -> 118276.875 | O66: =O44*(1+Tablas!$K$3) -> 85395.3125 | P66: =P44*(1+Tablas!$K$3) -> 59555 | Q66: =Q44*(1+Tablas!$K$3) -> 44948.4375
L67: TOTAL PRIMA NETA : | N67: =SUM(N63:N66) -> 356174.375 | O67: =SUM(O63:O66) -> 257529.6875 | P67: 180008.75 | Q67: 136189.0625
L68: Costo administrativo anual : | N68: 937.5 | O68: 937.5 | P68: 937.5 | Q68: 937.5
L69: IVA (16%) : | N69: =SUM(N67:N68)*16% -> 57137.9 | O69: =SUM(O67:O68)*16% -> 41354.75 | P69: 28951.4 | Q69: 21940.25
L70: TOTAL primera cuota : | N70: =((N67/4)+N68)*1.16 -> 104378.0687 | O70: =((O67/4)+O68)*1.16 -> 75771.10938 | P70: 53290.0375 | Q70: 40582.32812
L71: Valor cuota trimestral 2 a 4: | N71: =N67/4*1.16 -> 103290.5687 | O71: =O67/4*1.16 -> 74683.60938 | P71: 52202.5375 | Q71: 39494.82812
L72: =L60 -> Gran total anual | N72: =N70+(N71*3) -> 414249.775 | O72: =O70+(O71*3) -> 299821.9375 | P72: =P70+(P71*3) -> 209897.65 | Q72: =Q70+(Q71*3) -> 159066.8125
L74: TARIFAS MENSUALES
L75: Prima del asegurado titular : | N75: =N41*(1+Tablas!$K$2) -> 120608.5 | O75: =O41*(1+Tablas!$K$2) -> 87268.125 | P75: =P41*(1+Tablas!$K$2) -> 61067.25 | Q75: =Q41*(1+Tablas!$K$2) -> 46256.875
L76: Prima del (de la) cónyuge: | N76: =N42*(1+Tablas!$K$2) -> 120608.5 | O76: =O42*(1+Tablas!$K$2) -> 87268.125 | P76: =P42*(1+Tablas!$K$2) -> 61067.25 | Q76: =Q42*(1+Tablas!$K$2) -> 46256.875
B77: Tarifas validas a partir del 1 de marzo al 31 de diciembre del 2024. | L77: Prima del (de los) Hijo (s) : | N77: =N43*(1+Tablas!$K$2) -> 0 | O77: =O43*(1+Tablas!$K$2) -> 0 | P77: =P43*(1+Tablas!$K$2) -> 0 | Q77: =Q43*(1+Tablas!$K$2) -> 0
B78: Promociones válidas al 31 de diciembre de 2024. | L78: Total otros dependientes | N78: =N44*(1+Tablas!$K$2) -> 119927.25 | O78: =O44*(1+Tablas!$K$2) -> 86586.875 | P78: =P44*(1+Tablas!$K$2) -> 60386 | Q78: =Q44*(1+Tablas!$K$2) -> 45575.625
B79: El 10% de descuento en productos Globales sobre prima neta será aplicable durante toda la vida de la póliza, siempre y cuando el asegurado no haga cambios en el plan y deducibles contratados. | L79: TOTAL PRIMA NETA : | N79: =SUM(N75:N78) -> 361144.25 | O79: =SUM(O75:O78) -> 261123.125 | P79: 182520.5 | Q79: =SUM(Q75:Q78) -> 138089.375
B80: 6 meses sin intereses sin cargo al agente para modalidad de pago anual durante el primer año póliza con tarjetas de crédito participantes: Afirme, Azteca, Bajío, Banjercito, Banorte, Banregio, BBVA, Citibanamex, Famsa, HSBC, Inbursa, Invex, IXE, Liverpool, Mifel, Multiva, Santander, Scotiabank, Sociedad de Facilidades Multirotativas y American Express. Promoción válida sólo para tarjetas emitidas en la República Mexicana. | L80: Costo administrativo anual : | N80: 937.5 | O80: 937.5 | P80: 937.5 | Q80: 937.5
B81: En caso de que el asegurado elija la promoción “Sin costo por pago fraccionado” no podrá optar por la promoción a meses sin intereses. | L81: IVA (16%) : | N81: =SUM(N79:N80)*16% -> 57933.08 | O81: =SUM(O79:O80)*16% -> 41929.7 | P81: 29353.28 | Q81: 22244.3
B82: Las pólizas contratadas cuentan con limitaciones y exclusiones las cuáles pueden ser consultadas en www.bupasalud.com.mx Para más información, llámanos al 55 5202-1701 ext 4 o envíanos un correo a: ventasdirectas@bupa.com.mx | L82: TOTAL primera cuota : | N82: =((N79/12)+N80)*1.16 -> 35998.11083 | O82: =((O79/12)+O80)*1.16 -> 26329.40208 | P82: 18731.14833 | Q82: 14436.13958
B83: La presente cotización es de carácter informativo, no constituye una solicitud de seguro y/o el monto de la prima definitiva y/o las condiciones de la misma y/o una oferta de aseguramiento en términos del artículo 5to de la Ley Sobre el Contrato de Seguro. La emisión de la póliza asícomo posibles cambios en la tarifa están sujetos a valoración del riesgo de acuerdo con las políticas de Suscripción de Bupa México y es susceptible de modificaciones, por lo que Bupa podrá aceptar o negar el aseguramiento del riesgo propuesto. | L83: Valor cuota mensual 2 a 12 : | N83: =N79/12*1.16 -> 34910.61083 | O83: =O79/12*1.16 -> 25241.90208 | P83: 17643.64833 | Q83: 13348.63958
L84: =L72 -> Gran total anual | N84: =N82+(N83*11) -> 420014.83 | O84: =O82+(O83*11) -> 303990.325 | P84: =P82+(P83*11) -> 212811.28 | Q84: =Q82+(Q83*11) -> 161271.175

Sheet Global Select PE Health Plan
M32: FALSE
B33: Nombre del asegurado titular : | C33: =+'INGRESO DE DATOS'!$D$15 -> JUAN VIDAL | K33: Deducibles | M33: PLAN A | N33: PLAN 1 | O33: PLAN 2 | P33: PLAN 3 | Q33: PLAN 4
K34: Dentro del país de residencia | M34: 2000 | N34: 3500 | O34: 5000 | P34: 10000 | Q34: 20000
B35: Agencia / Agente : | C35: =+'INGRESO DE DATOS'!$D$29 -> Nombre del Agente | K35: Fuera del país de residencia | M35: 2000 | N35: 3500 | O35: 5000 | P35: 10000 | Q35: 20000
K37: TARIFAS ANUALES
B38: Número de adultos en la póliza : | C38: =+'INGRESO DE DATOS'!$D$17 -> 2 | F38: Edad del asegurado titular : | G38: =+'INGRESO DE DATOS'!$D$19 -> 18 | H38: =VLOOKUP($C$38,Tablas!A1503:B1504,2,0) -> 625 | K38: Prima del asegurado titular : | M38: =(VLOOKUP($G$38,Tablas!$A$1512:$G$1578,3,TRUE))+(Tablas!$Q$2) -> 41162.5 | N38: =(VLOOKUP($G$38,Tablas!$A$1512:$G$1578,4,TRUE))+(Tablas!$Q$2) -> 34875 | O38: =(VLOOKUP($G$38,Tablas!$A$1512:$G$1578,5,TRUE))+(Tablas!$Q$2) -> 30887.5 | P38: =(VLOOKUP($G$38,Tablas!$A$1512:$G$1578,6,TRUE))+(Tablas!$Q$2) -> 20812.5 | Q38: =(VLOOKUP($G$38,Tablas!$A$1512:$G$1578,7,TRUE))+(Tablas!$Q$2) -> 16525
K39: Prima del (de la) cónyuge: | M39: =(IF($C$38=1,0,(VLOOKUP($G$40,Tablas!$A$1512:$G$1578,3,TRUE))))+(IF($C$38=1,0,(Tablas!$Q$2))) -> 41162.5 | N39: =(IF($C$38=1,0,(VLOOKUP($G$40,Tablas!$A$1512:$G$1578,4,TRUE))))+(IF($C$38=1,0,(Tablas!$Q$2))) -> 34875 | O39: =(IF($C$38=1,0,(VLOOKUP($G$40,Tablas!$A$1512:$G$1578,5,TRUE))))+(IF($C$38=1,0,(Tablas!$Q$2))) -> 30887.5 | P39: =(IF($C$38=1,0,(VLOOKUP($G$40,Tablas!$A$1512:$G$1578,6,TRUE))))+(IF($C$38=1,0,(Tablas!$Q$2))) -> 20812.5 | Q39: =(IF($C$38=1,0,(VLOOKUP($G$40,Tablas!$A$1512:$G$1578,7,TRUE))))+(IF($C$38=1,0,(Tablas!$Q$2))) -> 16525
B40: Número de hijos en la póliza : | C40: =+'INGRESO DE DATOS'!$H$17 -> 0 | F40: Edad del (de la) cónyuge : | G40: =+'INGRESO DE DATOS'!$H$19 -> 18 | K40: Prima del (de los) Hijo (s) : | M40: =(IF($C$40=0,0,(VLOOKUP($C$40,Tablas!$A$1579:$G$1581,3,TRUE)))) -> 0 | N40: =(IF($C$40=0,0,(VLOOKUP($C$40,Tablas!$A$1579:$G$1581,4,TRUE)))) -> 0 | O40: =(IF($C$40=0,0,(VLOOKUP($C$40,Tablas!$A$1579:$G$1581,5,TRUE)))) -> 0 | P40: =(IF($C$40=0,0,(VLOOKUP($C$40,Tablas!$A$1579:$G$1581,6,TRUE)))) -> 0 | Q40: =(IF($C$40=0,0,(VLOOKUP($C$40,Tablas!$A$1579:$G$1581,7,TRUE)))) -> 0
K41: Total otros dependientes | M41: =Tablas!Q1513 -> 40537.5 | N41: =Tablas!R1513 -> 34250 | O41: =Tablas!S1513 -> 30262.5 | P41: =Tablas!T1513 -> 20187.5 | Q41: =Tablas!U1513 -> 15900
B42: FECHA DE COTIZACION : | D42: =NOW() -> 2024-03-11T10:41:48.210 | K42: TOTAL PRIMA NETA : | M42: =SUM(M38:M41) -> 122862.5 | N42: =SUM(N38:N41) -> 104000 | O42: 92037.5 | P42: 61812.5 | Q42: 48950
K43: Costo administrativo anual : | M43: 937.5 | N43: 937.5 | O43: 937.5 | P43: 937.5 | Q43: 937.5
K44: IVA (16%) : | M44: =SUM(M42:M43)*16% -> 19808 | N44: =SUM(N42:N43)*16% -> 16790 | O44: 14876 | P44: =SUM(P42:P43)*16% -> 10040 | Q44: 7982
K45: Gran total anual | M45: =SUM(M42:M44) -> 143608 | N45: =SUM(N42:N44) -> 121727.5 | O45: 107851 | P45: 72790 | Q45: 57869.5
K47: TARIFAS SEMESTRALES
K48: Prima del asegurado titular : | M48: =M38*(1+Tablas!$K$4) -> 43014.8125 | N48: =N38*(1+Tablas!$K$4) -> 36444.375 | O48: =O38*(1+Tablas!$K$4) -> 32277.4375 | P48: =P38*(1+Tablas!$K$4) -> 21749.0625 | Q48: =Q38*(1+Tablas!$K$4) -> 17268.625
K49: Prima del (de la) cónyuge: | M49: =M39*(1+Tablas!$K$4) -> 43014.8125 | N49: =N39*(1+Tablas!$K$4) -> 36444.375 | O49: =O39*(1+Tablas!$K$4) -> 32277.4375 | P49: =P39*(1+Tablas!$K$4) -> 21749.0625 | Q49: =Q39*(1+Tablas!$K$4) -> 17268.625
K50: Prima del (de los) Hijo (s) : | M50: =M40*(1+Tablas!$K$4) -> 0 | N50: =N40*(1+Tablas!$K$4) -> 0 | O50: =O40*(1+Tablas!$K$4) -> 0 | P50: =P40*(1+Tablas!$K$4) -> 0 | Q50: =Q40*(1+Tablas!$K$4) -> 0
K51: Total otros dependientes | M51: =M41*(1+Tablas!$K$4) -> 42361.6875 | N51: =N41*(1+Tablas!$K$4) -> 35791.25 | O51: =O41*(1+Tablas!$K$4) -> 31624.3125 | P51: =P41*(1+Tablas!$K$4) -> 21095.9375 | Q51: =Q41*(1+Tablas!$K$4) -> 16615.5
K52: TOTAL PRIMA NETA : | M52: =SUM(M48:M51) -> 128391.3125 | N52: =SUM(N48:N51) -> 108680 | O52: 96179.1875 | P52: 64594.0625 | Q52: 51152.75
K53: Costo administrativo anual : | M53: 937.5 | N53: 937.5 | O53: 937.5 | P53: 937.5 | Q53: 937.5
K54: IVA (16%) : | M54: =SUM(M52:M53)*16% -> 20692.61 | N54: =SUM(N52:N53)*16% -> 17538.8 | O54: 15538.67 | P54: =SUM(P52:P53)*16% -> 10485.05 | Q54: 8334.44
K55: TOTAL primera cuota : | M55: =((M52/2)+M53)*1.16 -> 75554.46125 | N55: =((N52/2)+N53)*1.16 -> 64121.9 | O55: 56871.42875 | P55: 38552.05625 | Q55: 30756.095
K56: Valor segunda cuota : | M56: =M52/2*1.16 -> 74466.96125 | N56: =N52/2*1.16 -> 63034.4 | O56: 55783.92875 | P56: 37464.55625 | Q56: 29668.595
K57: =K45 -> Gran total anual | M57: =+M55+M56 -> 150021.4225 | N57: =+N55+N56 -> 127156.3 | O57: 112655.3575 | P57: 76016.6125 | Q57: 60424.69
K59: TARIFAS TRIMESTRALES
K60: Prima del asegurado titular : | M60: =M38*(1+Tablas!$K$3) -> 44249.6875 | N60: =N38*(1+Tablas!$K$3) -> 37490.625 | O60: =O38*(1+Tablas!$K$3) -> 33204.0625 | P60: =P38*(1+Tablas!$K$3) -> 22373.4375 | Q60: =Q38*(1+Tablas!$K$3) -> 17764.375
K61: Prima del (de la) cónyuge: | M61: =M39*(1+Tablas!$K$3) -> 44249.6875 | N61: =N39*(1+Tablas!$K$3) -> 37490.625 | O61: =O39*(1+Tablas!$K$3) -> 33204.0625 | P61: =P39*(1+Tablas!$K$3) -> 22373.4375 | Q61: =Q39*(1+Tablas!$K$3) -> 17764.375
K62: Prima del (de los) Hijo (s) : | M62: =M40*(1+Tablas!$K$3) -> 0 | N62: =N40*(1+Tablas!$K$3) -> 0 | O62: =O40*(1+Tablas!$K$3) -> 0 | P62: =P40*(1+Tablas!$K$3) -> 0 | Q62: =Q40*(1+Tablas!$K$3) -> 0
K63: Total otros dependientes | M63: =M41*(1+Tablas!$K$3) -> 43577.8125 | N63: =N41*(1+Tablas!$K$3) -> 36818.75 | O63: =O41*(1+Tablas!$K$3) -> 32532.1875 | P63: =P41*(1+Tablas!$K$3) -> 21701.5625 | Q63: =Q41*(1+Tablas!$K$3) -> 17092.5
K64: TOTAL PRIMA NETA : | M64: =SUM(M60:M63) -> 132077.1875 | N64: =SUM(N60:N63) -> 111800 | O64: 98940.3125 | P64: 66448.4375 | Q64: 52621.25
K65: Costo administrativo anual : | M65: 937.5 | N65: 937.5 | O65: 937.5 | P65: 937.5 | Q65: 937.5
K66: IVA (16%) : | M66: =SUM(M64:M65)*16% -> 21282.35 | N66: =SUM(N64:N65)*16% -> 18038 | O66: 15980.45 | P66: =SUM(P64:P65)*16% -> 10781.75 | Q66: 8569.4
K67: TOTAL primera cuota : | M67: =((M64/4)+M65)*1.16 -> 39389.88437 | N67: =((N64/4)+N65)*1.16 -> 33509.5 | O67: 29780.19062 | P67: 20357.54688 | Q67: 16347.6625
K68: Valor cuota trimestral 2 a 4: | M68: =M64/4*1.16 -> 38302.38437 | N68: =N64/4*1.16 -> 32422 | O68: 28692.69062 | P68: 19270.04688 | Q68: 15260.1625
B69: Este plan cuenta con los siguientes periodos de espera adicionales: | K69: =K57 -> Gran total anual | M69: =M67+(M68*3) -> 154297.0375 | N69: =N67+(N68*3) -> 130775.5 | O69: =O67+(O68*3) -> 115858.2625 | P69: =P67+(P68*3) -> 78167.6875 | Q69: 62128.15
B70: PERÍODOS DE ESPERA
B71: Padecimientos de rodilla, ácido-pépticos, columna vertebral, nariz, senos paranasales, amígdalas, adenoides, hemorroides, hernias, tumoraciones mamarias (benignas y/o malignas), padecimientos anorrectales, prostáticos, ginecológicos, várices, insuficiencia del piso perineal, padecimientos de la vesícula y vías biliares, enfermedades articulares de las falanges de los pies, cataratas, litiasis renal y en vías urinarias. | I71: 6 meses | K71: TARIFAS MENSUALES
B72: Tratamiento contra el Cáncer. | I72: 6 meses | K72: Prima del asegurado titular : | M72: =M38*(1+Tablas!$K$2) -> 44867.125 | N72: =N38*(1+Tablas!$K$2) -> 38013.75 | O72: =O38*(1+Tablas!$K$2) -> 33667.375 | P72: =P38*(1+Tablas!$K$2) -> 22685.625 | Q72: =Q38*(1+Tablas!$K$2) -> 18012.25
B73: Examen dental preventivo. | I73: 10 meses | K73: Prima del (de la) cónyuge: | M73: =M39*(1+Tablas!$K$2) -> 44867.125 | N73: =N39*(1+Tablas!$K$2) -> 38013.75 | O73: =O39*(1+Tablas!$K$2) -> 33667.375 | P73: =P39*(1+Tablas!$K$2) -> 22685.625 | Q73: =Q39*(1+Tablas!$K$2) -> 18012.25
B74: Trasplantes. | I74: 6 meses | K74: Prima del (de los) Hijo (s) : | M74: =M40*(1+Tablas!$K$2) -> 0 | N74: =N40*(1+Tablas!$K$2) -> 0 | O74: =O40*(1+Tablas!$K$2) -> 0 | P74: =P40*(1+Tablas!$K$2) -> 0 | Q74: =Q40*(1+Tablas!$K$2) -> 0
B75: Tarifas validas a partir del 1 de marzo al 31 de diciembre del 2024. | K75: Total otros dependientes | M75: =M41*(1+Tablas!$K$2) -> 44185.875 | N75: =N41*(1+Tablas!$K$2) -> 37332.5 | O75: =O41*(1+Tablas!$K$2) -> 32986.125 | P75: =P41*(1+Tablas!$K$2) -> 22004.375 | Q75: =Q41*(1+Tablas!$K$2) -> 17331
B76: Promociones válidas al 31 de diciembre de 2024. | K76: TOTAL PRIMA NETA : | M76: =SUM(M72:M75) -> 133920.125 | N76: =SUM(N72:N75) -> 113360 | O76: 100320.875 | P76: 67375.625 | Q76: =SUM(Q72:Q75) -> 53355.5
B77: El 10% de descuento en productos Globales sobre prima neta será aplicable durante toda la vida de la póliza, siempre y cuando el asegurado no haga cambios en el plan y deducibles contratados. | K77: Costo administrativo anual : | M77: 937.5 | N77: 937.5 | O77: 937.5 | P77: 937.5 | Q77: 937.5
B78: 6 meses sin intereses sin cargo al agente para modalidad de pago anual durante el primer año póliza con tarjetas de crédito participantes: Afirme, Azteca, Bajío, Banjercito, Banorte, Banregio, BBVA, Citibanamex, Famsa, HSBC, Inbursa, Invex, IXE, Liverpool, Mifel, Multiva, Santander, Scotiabank, Sociedad de Facilidades Multirotativas y American Express. Promoción válida sólo para tarjetas emitidas en la República Mexicana. | K78: IVA (16%) : | M78: =SUM(M76:M77)*16% -> 21577.22 | N78: =SUM(N76:N77)*16% -> 18287.6 | O78: =SUM(O76:O77)*16% -> 16201.34 | P78: =SUM(P76:P77)*16% -> 10930.1 | Q78: =SUM(Q76:Q77)*16% -> 8686.88
B79: En caso de que el asegurado elija la promoción “Sin costo por pago fraccionado” no podrá optar por la promoción a meses sin intereses. | K79: TOTAL primera cuota : | M79: =((M76/12)+M77)*1.16 -> 14033.11208 | N79: =((N76/12)+N77)*1.16 -> 12045.63333 | O79: =((O76/12)+O77)*1.16 -> 10785.18458 | P79: =((P76/12)+P77)*1.16 -> 7600.477083 | Q79: =((Q76/12)+Q77)*1.16 -> 6245.198333
B80: Las pólizas contratadas cuentan con limitaciones y exclusiones las cuáles pueden ser consultadas en www.bupasalud.com.mx Para más información, llámanos al 55 5202-1701 ext 4 o envíanos un correo a: ventasdirectas@bupa.com.mx | K80: Valor cuota mensual 2 a 12 : | M80: =M76/12*1.16 -> 12945.61208 | N80: =N76/12*1.16 -> 10958.13333 | O80: =O76/12*1.16 -> 9697.684583 | P80: =P76/12*1.16 -> 6512.977083 | Q80: =Q76/12*1.16 -> 5157.698333
B81: La presente cotización es de carácter informativo, no constituye una solicitud de seguro y/o el monto de la prima definitiva y/o las condiciones de la misma y/o una oferta de aseguramiento en términos del artículo 5to de la Ley Sobre el Contrato de Seguro. La emisión de la póliza asícomo posibles cambios en la tarifa están sujetos a valoración del riesgo de acuerdo con las políticas de Suscripción de Bupa México y es susceptible de modificaciones, por lo que Bupa podrá aceptar o negar el aseguramiento del riesgo propuesto. | K81: =K69 -> Gran total anual | M81: =M79+(M80*11) -> 156434.845 | N81: =N79+(N80*11) -> 132585.1 | O81: =O79+(O80*11) -> 117459.715 | P81: =P79+(P80*11) -> 79243.225 | Q81: 62979.88

Sheet Global Elite Health Plan
B26: Nombre del asegurado titular : | C26: =+'INGRESO DE DATOS'!$D$15 -> JUAN VIDAL | K26: Deducibles | M26: PLAN 1 | N26: PLAN 2 | O26: PLAN 3 | P26: PLAN 4 | Q26: PLAN 5
K27: Dentro del país de residencia | M27: 1000 | N27: 2000 | O27: 3500 | P27: 5000 | Q27: 10000
B28: Agencia / Agente : | C28: =+'INGRESO DE DATOS'!$D$29 -> Nombre del Agente | K28: Fuera del país de residencia | M28: 1000 | N28: 2000 | O28: 3500 | P28: 5000 | Q28: 10000
B30: Número de adultos en la póliza : | D30: =+'INGRESO DE DATOS'!$D$17 -> 2 | E30: Edad del asegurado titular : | G30: =+'INGRESO DE DATOS'!$D$19 -> 18 | I30: =VLOOKUP($D$30,Tablas!A1503:B1504,2,0) -> 625 | K30: TARIFAS ANUALES
K31: Prima del asegurado titular : | M31: =(VLOOKUP($G$30,Tablas!$A$6:$G$72,3,TRUE))*'INGRESO DE DATOS'!$D$26+(Tablas!$Q$2) -> 170150 | N31: =(VLOOKUP($G$30,Tablas!$A$6:$G$72,4,TRUE))*'INGRESO DE DATOS'!$D$26+(Tablas!$Q$2) -> 121575 | O31: =(VLOOKUP($G$30,Tablas!$A$6:$G$72,5,TRUE))*'INGRESO DE DATOS'!$D$26+(Tablas!$Q$2) -> 96612.5 | P31: =(VLOOKUP($G$30,Tablas!$A$6:$G$72,6,TRUE))*'INGRESO DE DATOS'!$D$26+(Tablas!$Q$2) -> 83400 | Q31: =(VLOOKUP($G$30,Tablas!$A$6:$G$72,7,TRUE))*'INGRESO DE DATOS'!$D$26+(Tablas!$Q$2) -> 62787.5
B32: Número de hijos en la póliza : | D32: =+'INGRESO DE DATOS'!$H$17 -> 0 | E32: Edad del (de la) cónyuge : | G32: =+'INGRESO DE DATOS'!$H$19 -> 18 | K32: Prima del (de la) cónyuge: | M32: =(IF($D$30=1,0,(VLOOKUP($G$32,Tablas!$A$6:$G$72,3,TRUE))))*'INGRESO DE DATOS'!$D$26+(IF($D$30=1,0,(Tablas!$Q$2))) -> 170150 | N32: =(IF($D$30=1,0,(VLOOKUP($G$32,Tablas!$A$6:$G$72,4,TRUE))))*'INGRESO DE DATOS'!$D$26+(IF($D$30=1,0,(Tablas!$Q$2))) -> 121575 | O32: =(IF($D$30=1,0,(VLOOKUP($G$32,Tablas!$A$6:$G$72,5,TRUE))))*'INGRESO DE DATOS'!$D$26+(IF($D$30=1,0,(Tablas!$Q$2))) -> 96612.5 | P32: =(IF($D$30=1,0,(VLOOKUP($G$32,Tablas!$A$6:$G$72,6,TRUE))))*'INGRESO DE DATOS'!$D$26+(IF($D$30=1,0,(Tablas!$Q$2))) -> 83400 | Q32: =(IF($D$30=1,0,(VLOOKUP($G$32,Tablas!$A$6:$G$72,7,TRUE))))*'INGRESO DE DATOS'!$D$26+(IF($D$30=1,0,(Tablas!$Q$2))) -> 62787.5
K33: Prima del (de los) Hijo(s) : | M33: =IF($D$32=0,0,(VLOOKUP($D$32,Tablas!$A$73:$G$75,3,TRUE)))*'INGRESO DE DATOS'!$D$26 -> 0 | N33: =IF($D$32=0,0,(VLOOKUP($D$32,Tablas!$A$73:$G$75,4,TRUE)))*'INGRESO DE DATOS'!$D$26 -> 0 | O33: =IF($D$32=0,0,(VLOOKUP($D$32,Tablas!$A$73:$G$75,5,TRUE)))*'INGRESO DE DATOS'!$D$26 -> 0 | P33: =IF($D$32=0,0,(VLOOKUP($D$32,Tablas!$A$73:$G$75,6,TRUE)))*'INGRESO DE DATOS'!$D$26 -> 0 | Q33: =IF($D$32=0,0,(VLOOKUP($D$32,Tablas!$A$73:$G$75,7,TRUE)))*'INGRESO DE DATOS'!$D$26 -> 0
B34: FECHA DE COTIZACION : | D34: =NOW() -> 2024-03-11T10:41:48.210 | F34: FALSE | K34: Total otros dependientes | M34: =Tablas!Q7*'INGRESO DE DATOS'!$D$26 -> 169525 | N34: =Tablas!R7*'INGRESO DE DATOS'!$D$26 -> 120950 | O34: =Tablas!S7*'INGRESO DE DATOS'!$D$26 -> 95987.5 | P34: =Tablas!T7*'INGRESO DE DATOS'!$D$26 -> 82775 | Q34: =Tablas!U7*'INGRESO DE DATOS'!$D$26 -> 62162.5
K35: TOTAL PRIMA NETA : | M35: =SUM(M31:M34) -> 509825 | N35: =SUM(N31:N34) -> 364100 | O35: 289212.5 | P35: 249575 | Q35: 187737.5
K36: Costo administrativo anual : | M36: 937.5 | N36: 937.5 | O36: 937.5 | P36: 937.5 | Q36: 937.5
K37: IVA (16%) : | M37: =SUM(M35:M36)*16% -> 81722 | N37: =SUM(N35:N36)*16% -> 58406 | O37: =SUM(O35:O36)*16% -> 46424 | P37: 40082 | Q37: 30188
K38: =IF('INGRESO DE DATOS'!$D$26=0.8,"Costo total, (-20% de descuento)",IF('INGRESO DE DATOS'!$D$26=0.9,"Costo total, (-10% de descuento)","Gran total anual")) -> Gran total anual | M38: =SUM(M35:M37) -> 592484.5 | N38: =SUM(N35:N37) -> 423443.5 | O38: =SUM(O35:O37) -> 336574 | P38: 290594.5 | Q38: 218863
K40: TARIFAS SEMESTRALES
K41: Prima del asegurado titular : | M41: =M31*(1+Tablas!$K$4) -> 177806.75 | N41: =N31*(1+Tablas!$K$4) -> 127045.875 | O41: =O31*(1+Tablas!$K$4) -> 100960.0625 | P41: =P31*(1+Tablas!$K$4) -> 87153 | Q41: =Q31*(1+Tablas!$K$4) -> 65612.9375
K42: Prima del (de la) cónyuge: | M42: =M32*(1+Tablas!$K$4) -> 177806.75 | N42: =N32*(1+Tablas!$K$4) -> 127045.875 | O42: =O32*(1+Tablas!$K$4) -> 100960.0625 | P42: =P32*(1+Tablas!$K$4) -> 87153 | Q42: =Q32*(1+Tablas!$K$4) -> 65612.9375
K43: Prima del (de los) Hijo (s) : | M43: =M33*(1+Tablas!$K$4) -> 0 | N43: =N33*(1+Tablas!$K$4) -> 0 | O43: =O33*(1+Tablas!$K$4) -> 0 | P43: =P33*(1+Tablas!$K$4) -> 0 | Q43: =Q33*(1+Tablas!$K$4) -> 0
K44: Total otros dependientes | M44: =M34*(1+Tablas!$K$4) -> 177153.625 | N44: =N34*(1+Tablas!$K$4) -> 126392.75 | O44: =O34*(1+Tablas!$K$4) -> 100306.9375 | P44: =P34*(1+Tablas!$K$4) -> 86499.875 | Q44: =Q34*(1+Tablas!$K$4) -> 64959.8125
K45: TOTAL PRIMA NETA : | M45: =SUM(M41:M44) -> 532767.125 | N45: =SUM(N41:N44) -> 380484.5 | O45: 302227.0625 | P45: 260805.875 | Q45: =SUM(Q41:Q44) -> 196185.6875
K46: Costo administrativo anual : | M46: 937.5 | N46: 937.5 | O46: 937.5 | P46: 937.5 | Q46: 937.5
K47: IVA (16%) : | M47: =SUM(M45:M46)*16% -> 85392.74 | N47: =SUM(N45:N46)*16% -> 61027.52 | O47: 48506.33 | P47: 41878.94 | Q47: 31539.71
K48: TOTAL primera cuota : | M48: =((M45/2)+M46)*1.16 -> 310092.4325 | N48: =((N45/2)+N46)*1.16 -> 221768.51 | O48: 176379.1962 | P48: 152354.9075 | Q48: 114875.1987
K49: Valor segunda cuota : | M49: =M45/2*1.16 -> 309004.9325 | N49: =N45/2*1.16 -> 220681.01 | O49: 175291.6962 | P49: 151267.4075 | Q49: 113787.6987
K50: =K38 -> Gran total anual | M50: =M48+M49 -> 619097.365 | N50: =N48+N49 -> 442449.52 | O50: 351670.8925 | P50: =P48+P49 -> 303622.315 | Q50: 228662.8975
K52: TARIFAS TRIMESTRALES
K53: Prima del asegurado titular : | M53: =M31*(1+Tablas!$K$3) -> 182911.25 | N53: =N31*(1+Tablas!$K$3) -> 130693.125 | O53: =O31*(1+Tablas!$K$3) -> 103858.4375 | P53: =P31*(1+Tablas!$K$3) -> 89655 | Q53: =Q31*(1+Tablas!$K$3) -> 67496.5625
K54: Prima del (de la) cónyuge: | M54: =M32*(1+Tablas!$K$3) -> 182911.25 | N54: =N32*(1+Tablas!$K$3) -> 130693.125 | O54: =O32*(1+Tablas!$K$3) -> 103858.4375 | P54: =P32*(1+Tablas!$K$3) -> 89655 | Q54: =Q32*(1+Tablas!$K$3) -> 67496.5625
K55: Prima del (de los) Hijo (s) : | M55: =M33*(1+Tablas!$K$3) -> 0 | N55: =N33*(1+Tablas!$K$3) -> 0 | O55: =O33*(1+Tablas!$K$3) -> 0 | P55: =P33*(1+Tablas!$K$3) -> 0 | Q55: =Q33*(1+Tablas!$K$3) -> 0
K56: Total otros dependientes | M56: =M34*(1+Tablas!$K$3) -> 182239.375 | N56: =N34*(1+Tablas!$K$3) -> 130021.25 | O56: =O34*(1+Tablas!$K$3) -> 103186.5625 | P56: =P34*(1+Tablas!$K$3) -> 88983.125 | Q56: =Q34*(1+Tablas!$K$3) -> 66824.6875
K57: TOTAL PRIMA NETA : | M57: =SUM(M53:M56) -> 548061.875 | N57: =SUM(N53:N56) -> 391407.5 | O57: 310903.4375 | P57: 268293.125 | Q57: 201817.8125
K58: Costo administrativo anual : | M58: 937.5 | N58: 937.5 | O58: 937.5 | P58: 937.5 | Q58: 937.5
K59: IVA (16%) : | M59: =SUM(M57:M58)*16% -> 87839.9 | N59: =SUM(N57:N58)*16% -> 62775.2 | O59: 49894.55 | P59: 43076.9 | Q59: 32440.85
K60: TOTAL primera cuota : | M60: =((M57/4)+M58)*1.16 -> 160025.4437 | N60: =((N57/4)+N58)*1.16 -> 114595.675 | O60: 91249.49687 | P60: 78892.50625 | Q60: 59614.66562
K61: Valor cuota trimestral 2 a 4: | M61: =M57/4*1.16 -> 158937.9437 | N61: =N57/4*1.16 -> 113508.175 | O61: 90161.99687 | P61: 77805.00625 | Q61: 58527.16562
K62: =K50 -> Gran total anual | M62: =M60+(M61*3) -> 636839.275 | N62: =N60+(N61*3) -> 455120.2 | O62: 361735.4875 | P62: 312307.525 | Q62: 235196.1625
K64: TARIFAS MENSUALES
K65: Prima del asegurado titular : | M65: =M31*(1+Tablas!$K$2) -> 185463.5 | N65: =N31*(1+Tablas!$K$2) -> 132516.75 | O65: =O31*(1+Tablas!$K$2) -> 105307.625 | P65: =P31*(1+Tablas!$K$2) -> 90906 | Q65: =Q31*(1+Tablas!$K$2) -> 68438.375
B66: Tarifas validas a partir del 1 de marzo al 31 de diciembre del 2024. | K66: Prima del (de la) cónyuge: | M66: =M32*(1+Tablas!$K$2) -> 185463.5 | N66: =N32*(1+Tablas!$K$2) -> 132516.75 | O66: =O32*(1+Tablas!$K$2) -> 105307.625 | P66: =P32*(1+Tablas!$K$2) -> 90906 | Q66: =Q32*(1+Tablas!$K$2) -> 68438.375
B67: Promociones válidas al 31 de diciembre de 2024. | K67: Prima del (de los) Hijo (s) : | M67: =M33*(1+Tablas!$K$2) -> 0 | N67: =N33*(1+Tablas!$K$2) -> 0 | O67: =O33*(1+Tablas!$K$2) -> 0 | P67: =P33*(1+Tablas!$K$2) -> 0 | Q67: =Q33*(1+Tablas!$K$2) -> 0
B68: El 10% de descuento en productos Globales sobre prima neta será aplicable durante toda la vida de la póliza, siempre y cuando el asegurado no haga cambios en el plan y deducibles contratados. | K68: Total otros dependientes | M68: =M34*(1+Tablas!$K$2) -> 184782.25 | N68: =N34*(1+Tablas!$K$2) -> 131835.5 | O68: =O34*(1+Tablas!$K$2) -> 104626.375 | P68: =P34*(1+Tablas!$K$2) -> 90224.75 | Q68: =Q34*(1+Tablas!$K$2) -> 67757.125
B69: 6 meses sin intereses sin cargo al agente para modalidad de pago anual durante el primer año póliza con tarjetas de crédito participantes: Afirme, Azteca, Bajío, Banjercito, Banorte, Banregio, BBVA, Citibanamex, Famsa, HSBC, Inbursa, Invex, IXE, Liverpool, Mifel, Multiva, Santander, Scotiabank, Sociedad de Facilidades Multirotativas y American Express. Promoción válida sólo para tarjetas emitidas en la República Mexicana. | K69: TOTAL PRIMA NETA : | M69: =SUM(M65:M68) -> 555709.25 | N69: =SUM(N65:N68) -> 396869 | O69: 315241.625 | P69: 272036.75 | Q69: =SUM(Q65:Q68) -> 204633.875
B70: En caso de que el asegurado elija la promoción “Sin costo por pago fraccionado” no podrá optar por la promoción a meses sin intereses. | K70: Costo administrativo anual : | M70: 937.5 | N70: 937.5 | O70: 937.5 | P70: 937.5 | Q70: 937.5
B71: Las pólizas contratadas cuentan con limitaciones y exclusiones las cuáles pueden ser consultadas en www.bupasalud.com.mx Para más información, llámanos al 55 5202-1701 ext 4 o envíanos un correo a: ventasdirectas@bupa.com.mx | K71: IVA (16%) : | M71: =SUM(M69:M70)*16% -> 89063.48 | N71: =SUM(N69:N70)*16% -> 63649.04 | O71: 50588.66 | P71: 43675.88 | Q71: 32891.42
B72: La presente cotización es de carácter informativo, no constituye una solicitud de seguro y/o el monto de la prima definitiva y/o las condiciones de la misma y/o una oferta de aseguramiento en términos del artículo 5to de la Ley Sobre el Contrato de Seguro. La emisión de la póliza asícomo posibles cambios en la tarifa están sujetos a valoración del riesgo de acuerdo con las políticas de Suscripción de Bupa México y es susceptible de modificaciones, por lo que Bupa podrá aceptar o negar el aseguramiento del riesgo propuesto. | K72: TOTAL primera cuota : | M72: =((M69/12)+M70)*1.16 -> 54806.06083 | N72: =((N69/12)+N70)*1.16 -> 39451.50333 | O72: 31560.85708 | P72: 27384.38583 | Q72: 20868.77458
K73: Valor cuota mensual 2 a 12 : | M73: =M69/12*1.16 -> 53718.56083 | N73: =N69/12*1.16 -> 38364.00333 | O73: 30473.35708 | P73: 26296.88583 | Q73: 19781.27458
K74: =K62 -> Gran total anual | M74: =M72+(M73*11) -> 645710.23 | N74: =N72+(N73*11) -> 461455.54 | O74: =O72+(O73*11) -> 366767.785 | P74: =P72+(P73*11) -> 316650.13 | Q74: =Q72+(Q73*11) -> 238462.795

Sheet Global Ultimate Health Plan
N19: FALSE
B20: Nombre del asegurado titular : | C20: =+'INGRESO DE DATOS'!$D$15 -> JUAN VIDAL | L20: Deducibles | N20: PLAN 1 | O20: PLAN 2 | P20: PLAN 3
L21: Dentro del país de residencia | N21: 0 | O21: 1000 | P21: 2000
B22: Agencia / Agente : | C22: =+'INGRESO DE DATOS'!$D$29 -> Nombre del Agente | L22: Fuera del país de residencia | N22: 0 | O22: 1000 | P22: 2000
B24: Número de adultos en la póliza : | D24: =+'INGRESO DE DATOS'!$D$17 -> 2 | E24: Edad del asegurado titular : | G24: =+'INGRESO DE DATOS'!$D$19 -> 18 | H24: =VLOOKUP($D$24,Tablas!A1503:B1504,2,0) -> 625 | L24: TARIFAS ANUALES
L25: Prima del asegurado titular : | N25: =(VLOOKUP($G$24,Tablas!$A$1205:$G$1271,3,TRUE))*'INGRESO DE DATOS'!$D$26+(Tablas!$Q$2) -> 389725 | O25: =(VLOOKUP($G$24,Tablas!$A$1205:$G$1271,4,TRUE))*'INGRESO DE DATOS'!$D$26+(Tablas!$Q$2) -> 248450 | P25: =(VLOOKUP($G$24,Tablas!$A$1205:$G$1271,5,TRUE))*'INGRESO DE DATOS'!$D$26+(Tablas!$Q$2) -> 178675
B26: Número de hijos en la póliza : | D26: =+'INGRESO DE DATOS'!$H$17 -> 0 | E26: Edad del (de la) cónyuge : | G26: =+'INGRESO DE DATOS'!$H$19 -> 18 | L26: Prima del (de la) cónyuge: | N26: =(IF($D$24=1,0,(VLOOKUP($G$26,Tablas!$A$1205:$G$1271,3,TRUE))))*'INGRESO DE DATOS'!$D$26+(IF($D$24=1,0,(Tablas!$Q$2))) -> 389725 | O26: =(IF($D$24=1,0,(VLOOKUP($G$26,Tablas!$A$1205:$G$1271,4,TRUE))))*'INGRESO DE DATOS'!$D$26+(IF($D$24=1,0,(Tablas!$Q$2))) -> 248450 | P26: =(IF($D$24=1,0,(VLOOKUP($G$26,Tablas!$A$1205:$G$1271,5,TRUE))))*'INGRESO DE DATOS'!$D$26+(IF($D$24=1,0,(Tablas!$Q$2))) -> 178675
L27: Prima del (de los) Hijo (s) : | N27: =IF($D$26=0,0,(VLOOKUP($D$26,Tablas!$A$1272:$G$1274,3,TRUE)))*'INGRESO DE DATOS'!$D$26 -> 0 | O27: =IF($D$26=0,0,(VLOOKUP($D$26,Tablas!$A$1272:$G$1274,4,TRUE)))*'INGRESO DE DATOS'!$D$26 -> 0 | P27: =IF($D$26=0,0,(VLOOKUP($D$26,Tablas!$A$1272:$G$1274,5,TRUE)))*'INGRESO DE DATOS'!$D$26 -> 0
B28: FECHA DE COTIZACION : | D28: =NOW() -> 2024-03-11T10:41:48.210 | L28: Total otros dependientes | N28: =Tablas!Q1206*'INGRESO DE DATOS'!$D$26 -> 389100 | O28: =Tablas!R1206*'INGRESO DE DATOS'!$D$26 -> 247825 | P28: =Tablas!S1206*'INGRESO DE DATOS'!$D$26 -> 178050
L29: TOTAL PRIMA NETA : | N29: =SUM(N25:N28) -> 1168550 | O29: =SUM(O25:O28) -> 744725 | P29: 535400
L30: Costo administrativo anual : | N30: 937.5 | O30: 937.5 | P30: 937.5
L31: IVA (16%) : | N31: =+N29*16% -> 186968 | O31: =+O29*16% -> 119156 | P31: =+P29*16% -> 85664
L32: =IF('INGRESO DE DATOS'!$D$26=0.8,"Costo total, (-20% de descuento)",IF('INGRESO DE DATOS'!$D$26=0.9,"Costo total, (-10% de descuento)","Gran total anual")) -> Gran total anual | N32: =SUM(N29:N31) + N30*0.16 -> 1356605.5 | O32: =SUM(O29:O31) + O30*0.16 -> 864968.5 | P32: 622151.5
L34: TARIFAS SEMESTRALES
L35: Prima del asegurado titular : | N35: =N25*(1+Tablas!$K$4) -> 407262.625 | O35: =O25*(1+Tablas!$K$4) -> 259630.25 | P35: =P25*(1+Tablas!$K$4) -> 186715.375
L36: Prima del (de la) cónyuge: | N36: =N26*(1+Tablas!$K$4) -> 407262.625 | O36: =O26*(1+Tablas!$K$4) -> 259630.25 | P36: =P26*(1+Tablas!$K$4) -> 186715.375
L37: Prima del (de los) Hijo (s) : | N37: =N27*(1+Tablas!$K$4) -> 0 | O37: =O27*(1+Tablas!$K$4) -> 0 | P37: =P27*(1+Tablas!$K$4) -> 0
L38: Total otros dependientes | N38: =N28*(1+Tablas!$K$4) -> 406609.5 | O38: =O28*(1+Tablas!$K$4) -> 258977.125 | P38: =P28*(1+Tablas!$K$4) -> 186062.25
L39: TOTAL PRIMA NETA : | N39: =SUM(N35:N38) -> 1221134.75 | O39: =SUM(O35:O38) -> 778237.625 | P39: 559493
L40: Costo administrativo anual : | N40: 937.5 | O40: 937.5 | P40: 937.5
L41: IVA (16%) : | N41: =SUM(N39:N40)*16% -> 195531.56 | O41: =SUM(O39:O40)*16% -> 124668.02 | P41: 89668.88
L42: TOTAL primera cuota : | N42: =((N39/2)+N40)*1.16 -> 709345.655 | O42: =((O39/2)+O40)*1.16 -> 452465.3225 | P42: 325593.44
L43: Valor segunda cuota : | N43: =N39/2*1.16 -> 708258.155 | O43: =O39/2*1.16 -> 451377.8225 | P43: 324505.94
L44: =L32 -> Gran total anual | N44: =N42+N43 -> 1417603.81 | O44: =O42+O43 -> 903843.145 | P44: 650099.38
L46: TARIFAS TRIMESTRALES
L47: Prima del asegurado titular : | N47: =N25*(1+Tablas!$K$3) -> 418954.375 | O47: =O25*(1+Tablas!$K$3) -> 267083.75 | P47: =P25*(1+Tablas!$K$3) -> 192075.625
L48: Prima del (de la) cónyuge: | N48: =N26*(1+Tablas!$K$3) -> 418954.375 | O48: =O26*(1+Tablas!$K$3) -> 267083.75 | P48: =P26*(1+Tablas!$K$3) -> 192075.625
L49: Prima del (de los) Hijo (s) : | N49: =N27*(1+Tablas!$K$3) -> 0 | O49: =O27*(1+Tablas!$K$3) -> 0 | P49: =P27*(1+Tablas!$K$3) -> 0
L50: Total otros dependientes | N50: =N28*(1+Tablas!$K$3) -> 418282.5 | O50: =O28*(1+Tablas!$K$3) -> 266411.875 | P50: =P28*(1+Tablas!$K$3) -> 191403.75
L51: TOTAL PRIMA NETA : | N51: =SUM(N47:N50) -> 1256191.25 | O51: =SUM(O47:O50) -> 800579.375 | P51: 575555
L52: Costo administrativo anual : | N52: 937.5 | O52: 937.5 | P52: 937.5
L53: IVA (16%) : | N53: =+N51*16% -> 200990.6 | O53: =+O51*16% -> 128092.7 | P53: =+P51*16% -> 92088.8
L54: TOTAL primera cuota : | N54: =((N51/4)+N52)*1.16 -> 365382.9625 | O54: =((O51/4)+O52)*1.16 -> 233255.5187 | P54: 167998.45
L55: Valor cuota trimestral 2 a 4: | N55: =N51/4*1.16 -> 364295.4625 | O55: =O51/4*1.16 -> 232168.0187 | P55: 166910.95
L56: =L44 -> Gran total anual | N56: =N54+(N55*3) -> 1458269.35 | O56: =O54+(O55*3) -> 929759.575 | P56: 668731.3
L58: TARIFAS MENSUALES
L59: Prima del asegurado titular : | N59: =N25*(1+Tablas!$K$2) -> 424800.25 | O59: =O25*(1+Tablas!$K$2) -> 270810.5 | P59: =P25*(1+Tablas!$K$2) -> 194755.75
B60: Tarifas validas a partir del 1 de marzo al 31 de diciembre del 2024. | L60: Prima del (de la) cónyuge: | N60: =N26*(1+Tablas!$K$2) -> 424800.25 | O60: =O26*(1+Tablas!$K$2) -> 270810.5 | P60: =P26*(1+Tablas!$K$2) -> 194755.75
B61: Promociones válidas al 31 de diciembre de 2024. | L61: Prima del (de los) Hijo (s) : | N61: =N27*(1+Tablas!$K$2) -> 0 | O61: =O27*(1+Tablas!$K$2) -> 0 | P61: =P27*(1+Tablas!$K$2) -> 0
B62: El 10% de descuento en productos Globales sobre prima neta será aplicable durante toda la vida de la póliza, siempre y cuando el asegurado no haga cambios en el plan y deducibles contratados. | L62: Total otros dependientes | N62: =N28*(1+Tablas!$K$2) -> 424119 | O62: =O28*(1+Tablas!$K$2) -> 270129.25 | P62: =P28*(1+Tablas!$K$2) -> 194074.5
B63: 6 meses sin intereses sin cargo al agente para modalidad de pago anual durante el primer año póliza con tarjetas de crédito participantes: Afirme, Azteca, Bajío, Banjercito, Banorte, Banregio, BBVA, Citibanamex, Famsa, HSBC, Inbursa, Invex, IXE, Liverpool, Mifel, Multiva, Santander, Scotiabank, Sociedad de Facilidades Multirotativas y American Express. Promoción válida sólo para tarjetas emitidas en la República Mexicana. | L63: TOTAL PRIMA NETA : | N63: =SUM(N59:N62) -> 1273719.5 | O63: =SUM(O59:O62) -> 811750.25 | P63: 583586
B64: En caso de que el asegurado elija la promoción “Sin costo por pago fraccionado” no podrá optar por la promoción a meses sin intereses. | L64: Costo administrativo anual : | N64: 937.5 | O64: 937.5 | P64: 937.5
B65: Las pólizas contratadas cuentan con limitaciones y exclusiones las cuáles pueden ser consultadas en www.bupasalud.com.mx Para más información, llámanos al 55 5202-1701 ext 4 o envíanos un correo a: ventasdirectas@bupa.com.mx | L65: IVA (16%) : | N65: =+N63*16% -> 203795.12 | O65: =+O63*16% -> 129880.04 | P65: =+P63*16% -> 93373.76
B66: La presente cotización es de carácter informativo, no constituye una solicitud de seguro y/o el monto de la prima definitiva y/o las condiciones de la misma y/o una oferta de aseguramiento en términos del artículo 5to de la Ley Sobre el Contrato de Seguro. La emisión de la póliza asícomo posibles cambios en la tarifa están sujetos a valoración del riesgo de acuerdo con las políticas de Suscripción de Bupa México y es susceptible de modificaciones, por lo que Bupa podrá aceptar o negar el aseguramiento del riesgo propuesto. | L66: TOTAL primera cuota : | N66: =((N63/12)+N64)*1.16 -> 124213.7183 | O66: =((O63/12)+O64)*1.16 -> 79556.69083 | P66: =((P63/12)+P64)*1.16 -> 57500.81333
L67: Valor cuota mensual 2 a 12 : | N67: =N63/12*1.16 -> 123126.2183 | O67: =O63/12*1.16 -> 78469.19083 | P67: 56413.31333
L68: =L56 -> Gran total anual | N68: =N66+(N67*11) -> 1478602.12 | O68: =O66+(O67*11) -> 942717.79 | P68: =P66+(P67*11) -> 678047.26

Sheet Resumen tarifas
A17: Cotización de Seguro Médico - Bupa Global Health Plans
A19: Nombre del asegurado titular : | C19: =+'INGRESO DE DATOS'!$D$15 -> JUAN VIDAL
A21: Agencia / Agente : | C21: =+'INGRESO DE DATOS'!$D$29 -> Nombre del Agente
A23: Número de adultos en la póliza : | C23: ='INGRESO DE DATOS'!D17 -> 2 | E23: Edad del asegurado titular : | G23: ='INGRESO DE DATOS'!D19 -> 18
A26: Número de hijos en la póliza : | C26: ='INGRESO DE DATOS'!H17 -> 0 | E26: Edad del (de la) cónyuge : | G26: ='INGRESO DE DATOS'!H19 -> 18
D29: FECHA DE COTIZACION : | E29: =NOW() -> 2024-03-11T10:41:48.230
A33: Global Ultimate Health Plan
A34: Deducibles | C34: PLAN 1 | D34: PLAN 2 | E34: PLAN 3
A35: Dentro del país de residencia | C35: 0 | D35: 1000 | E35: 2000
A36: Fuera del país de residencia | C36: 0 | D36: 1000 | E36: 2000
C37: Tarifas Anuales
C38: =+'Global Ultimate Health Plan'!N32 -> 1356605.5 | D38: =+'Global Ultimate Health Plan'!O32 -> 864968.5 | E38: =+'Global Ultimate Health Plan'!P32 -> 622151.5
C39: Tarifas Semestrales
C40: =+'Global Ultimate Health Plan'!N44 -> 1417603.81 | D40: =+'Global Ultimate Health Plan'!O44 -> 903843.145 | E40: =+'Global Ultimate Health Plan'!P44 -> 650099.38
C41: Tarifas Trimestrales
C42: =+'Global Ultimate Health Plan'!N56 -> 1458269.35 | D42: =+'Global Ultimate Health Plan'!O56 -> 929759.575 | E42: =+'Global Ultimate Health Plan'!P56 -> 668731.3
C43: Tarifas Mensuales
C44: =+'Global Ultimate Health Plan'!N68 -> 1478602.12 | D44: =+'Global Ultimate Health Plan'!O68 -> 942717.79 | E44: =+'Global Ultimate Health Plan'!P68 -> 678047.26
A46: Global Elite Health Plan
A47: Deducibles | C47: PLAN 1 | D47: PLAN 2 | E47: PLAN 3 | F47: PLAN 4 | G47: PLAN 5
A48: Dentro del país de residencia | C48: 1000 | D48: 2000 | E48: 3500 | F48: 5000 | G48: 10000
A49: Fuera del país de residencia | C49: 1000 | D49: 2000 | E49: 3500 | F49: 5000 | G49: 10000
C50: Tarifas Anuales
C51: =+'Global Elite Health Plan'!M38 -> 592484.5 | D51: =+'Global Elite Health Plan'!N38 -> 423443.5 | E51: =+'Global Elite Health Plan'!O38 -> 336574 | F51: =+'Global Elite Health Plan'!P38 -> 290594.5 | G51: =+'Global Elite Health Plan'!Q38 -> 218863
C52: Tarifas Semestrales
C53: =+'Global Elite Health Plan'!M50 -> 619097.365 | D53: =+'Global Elite Health Plan'!N50 -> 442449.52 | E53: =+'Global Elite Health Plan'!O50 -> 351670.8925 | F53: =+'Global Elite Health Plan'!P50 -> 303622.315 | G53: =+'Global Elite Health Plan'!Q50 -> 228662.8975
C54: Tarifas Trimestrales
C55: =+'Global Elite Health Plan'!M62 -> 636839.275 | D55: =+'Global Elite Health Plan'!N62 -> 455120.2 | E55: =+'Global Elite Health Plan'!O62 -> 361735.4875 | F55: =+'Global Elite Health Plan'!P62 -> 312307.525 | G55: =+'Global Elite Health Plan'!Q62 -> 235196.1625
C56: Tarifas Mensuales
C57: =+'Global Elite Health Plan'!M74 -> 645710.23 | D57: =+'Global Elite Health Plan'!N74 -> 461455.54 | E57: =+'Global Elite Health Plan'!O74 -> 366767.785 | F57: =+'Global Elite Health Plan'!P74 -> 316650.13 | G57: =+'Global Elite Health Plan'!Q74 -> 238462.795
A59: Global Premier Health Plan
A60: Deducibles | C60: PLAN 1 | D60: PLAN 2 | E60: PLAN 3 | F60: PLAN 4
A61: Dentro del país de residencia | C61: 1000 | D61: 2000 | E61: 5000 | F61: 10000
A62: Fuera del país de residencia | C62: 1000 | D62: 2000 | E62: 5000 | F62: 10000
C63: Tarifas Anuales
C64: =+'Global Premier Health Plan'!N48 -> 385424.5 | D64: =+'Global Premier Health Plan'!O48 -> 278980 | E64: =+'Global Premier Health Plan'!P48 -> 195329.5 | F64: =+'Global Premier Health Plan'!Q48 -> 148045
C65: Tarifas Semestrales
C66: =+'Global Premier Health Plan'!N60 -> 402719.665 | D66: =+'Global Premier Health Plan'!O60 -> 291485.1625 | E66: =+'Global Premier Health Plan'!P60 -> 204070.39 | F66: =+'Global Premier Health Plan'!Q60 -> 154658.0875
C67: Tarifas Trimestrales
C68: =+'Global Premier Health Plan'!N72 -> 414249.775 | D68: =+'Global Premier Health Plan'!O72 -> 299821.9375 | E68: =+'Global Premier Health Plan'!P72 -> 209897.65 | F68: =+'Global Premier Health Plan'!Q72 -> 159066.8125
C69: Tarifas Mensuales
C70: =+'Global Premier Health Plan'!N84 -> 420014.83 | D70: =+'Global Premier Health Plan'!O84 -> 303990.325 | E70: =+'Global Premier Health Plan'!P84 -> 212811.28 | F70: =+'Global Premier Health Plan'!Q84 -> 161271.175
A72: Global Select Health Plan
A73: ESTE PRODUCTO NO CUENTA CON COBERTURA DE MATERNIDAD
A74: Deducibles | C74: PLAN A | D74: PLAN 1 | E74: PLAN 2 | F74: PLAN 3 | G74: PLAN 4
A75: Dentro del país de residencia | C75: 2000 | D75: 3500 | E75: 5000 | F75: 10000 | G75: 20000
A76: Fuera del país de residencia | C76: 2000 | D76: 3500 | E76: 5000 | F76: 10000 | G76: 20000
C77: Tarifas Anuales
C78: =+'Global Select Health Plan'!M45 -> 178886.5 | D78: =+'Global Select Health Plan'!N45 -> 151481.5 | E78: =+'Global Select Health Plan'!O45 -> 134212 | F78: =+'Global Select Health Plan'!P45 -> 90364 | G78: =+'Global Select Health Plan'!Q45 -> 71702.5
C79: Tarifas Semestrales
C80: =+'Global Select Health Plan'!M57 -> 186887.455 | D80: =+'Global Select Health Plan'!N57 -> 158249.23 | E80: =+'Global Select Health Plan'!O57 -> 140202.6025 | F80: =+'Global Select Health Plan'!P57 -> 94381.4425 | G80: =+'Global Select Health Plan'!Q57 -> 74880.175
C81: Tarifas Trimestrales
C82: =+'Global Select Health Plan'!M69 -> 192221.425 | D82: =+'Global Select Health Plan'!N69 -> 162761.05 | E82: =+'Global Select Health Plan'!O69 -> 144196.3375 | F82: =+'Global Select Health Plan'!P69 -> 97059.7375 | G82: =+'Global Select Health Plan'!Q69 -> 76998.625
C83: Tarifas Mensuales
C84: =+'Global Select Health Plan'!M81 -> 194888.41 | D84: =+'Global Select Health Plan'!N81 -> 165016.96 | E84: =+'Global Select Health Plan'!O81 -> 146193.205 | F84: =+'Global Select Health Plan'!P81 -> 98398.885 | G84: =+'Global Select Health Plan'!Q81 -> 78057.85
A86: Global Select PE Health Plan
A87: ESTE PRODUCTO NO CUENTA CON COBERTURA DE MATERNIDAD, NO APLICA DESCUENTO ESPECIAL
A88: Deducibles | C88: PLAN A | D88: PLAN 1 | E88: PLAN 2 | F88: PLAN 3 | G88: PLAN 4
A89: Dentro del país de residencia | C89: 2000 | D89: 3500 | E89: 5000 | F89: 10000 | G89: 20000
A90: Fuera del país de residencia | C90: 2000 | D90: 3500 | E90: 5000 | F90: 10000 | G90: 20000
C91: Tarifas Anuales
C92: =+'Global Select PE Health Plan'!M45 -> 143608 | D92: =+'Global Select PE Health Plan'!N45 -> 121727.5 | E92: =+'Global Select PE Health Plan'!O45 -> 107851 | F92: =+'Global Select PE Health Plan'!P45 -> 72790 | G92: =+'Global Select PE Health Plan'!Q45 -> 57869.5
C93: Tarifas Semestrales
C94: =+'Global Select PE Health Plan'!M57 -> 150021.4225 | D94: =+'Global Select PE Health Plan'!N57 -> 127156.3 | E94: =+'Global Select PE Health Plan'!O57 -> 112655.3575 | F94: =+'Global Select PE Health Plan'!P57 -> 76016.6125 | G94: =+'Global Select PE Health Plan'!Q57 -> 60424.69
C95: Tarifas Trimestrales
C96: =+'Global Select PE Health Plan'!M69 -> 154297.0375 | D96: =+'Global Select PE Health Plan'!N69 -> 130775.5 | E96: =+'Global Select PE Health Plan'!O69 -> 115858.2625 | F96: =+'Global Select PE Health Plan'!P69 -> 78167.6875 | G96: =+'Global Select PE Health Plan'!Q69 -> 62128.15
C97: Tarifas Mensuales
C98: =+'Global Select PE Health Plan'!M81 -> 156434.845 | D98: =+'Global Select PE Health Plan'!N81 -> 132585.1 | E98: =+'Global Select PE Health Plan'!O81 -> 117459.715 | F98: =+'Global Select PE Health Plan'!P81 -> 79243.225 | G98: =+'Global Select PE Health Plan'!Q81 -> 62979.88
A100: Este plan cuenta con los siguientes periodos de espera adicionales:
A101: PERÍODOS DE ESPERA
A102: Padecimientos de rodilla, ácido-pépticos, columna vertebral, nariz, senos paranasales, amígdalas, adenoides, hemorroides, hernias, tumoraciones mamarias (benignas y/o malignas), padecimientos anorrectales, prostáticos, ginecológicos, várices, insuficiencia del piso perineal, padecimientos de la vesícula y vías biliares, enfermedades articulares de las falanges de los pies, cataratas, litiasis renal y en vías urinarias. | G102: 6 meses
A103: Tratamiento contra el Cáncer. | G103: 6 meses
A104: Examen dental preventivo. | G104: 10 meses
A105: Trasplantes. | G105: 6 meses
A107: Cobertura de preexistencias. Quedarán cubiertas las preexistencias declaradas al momento de la solicitud con un período de espera de 2 años, independientemente de la aplicación de alguna extra prima o sobre deducible derivado de la suscripción. No aplica reconocimiento de antigüedad para reducir o eliminar los períodos de espera mencionados en este endoso.
A109: Global Major Medical Health Plan
A110: Deducibles | C110: PLAN 1 | D110: PLAN 2
A111: Dentro del país de residencia | C111: 10000 | D111: 20000
A112: Fuera del país de residencia | C112: 10000 | D112: 20000
C113: Tarifas Anuales
C114: ='Global Major Medical Health Pla'!M41 -> 199375 | D114: ='Global Major Medical Health Pla'!N41 -> 146232.5
C115: Tarifas Semestrales
C116: ='Global Major Medical Health Pla'!M53 -> 208297.9375 | D116: ='Global Major Medical Health Pla'!N53 -> 152764.025
C117: Tarifas Trimestrales
C118: ='Global Major Medical Health Pla'!M65 -> 214246.5625 | D118: ='Global Major Medical Health Pla'!N65 -> 157118.375
C119: Tarifas Mensuales
C120: ='Global Major Medical Health Pla'!M77 -> 217220.875 | D120: ='Global Major Medical Health Pla'!N77 -> 159295.55
A122: $937.5 de costo administrativo anual aplica a la primera cuota
A124: Tarifas validas a partir del 1 de marzo al 31 de diciembre del 2024.
A126: La presente cotización es de carácter informativo y no constituye el monto de la prima definitiva ni las condiciones de la misma. La emisión de la póliza está sujeta a valoración del riesgo y/o cambio en la tarifa por parte del área de Suscripción de Bupa y puede tener modificaciones por lo que no expresa compromiso legal para la cobertura del seguro. Este cotizador es válido del del 1 de Marzo del 2023 al 31 de Diciembre del 2024.

Sheet Tablas (hidden)
A2: BUPA GLOBAL ELITE | I2: FACTOR MENSUAL: | K2: =IF('INGRESO DE DATOS'!E23,0,0.09) -> 0.09 | M2: % Anteriores | N2: 0.0925 | P2: Usamed | Q2: 625
A3: TARIFAS ANUALES | I3: FACTOR TRIMESTRAL: | K3: =IF('INGRESO DE DATOS'!E23,0,0.075) -> 0.075 | N3: 0.26875 | U3: 1000
A4: EDAD | I4: FACTOR SEMIANUAL: | K4: =IF('INGRESO DE DATOS'!E23,0,0.045) -> 0.045 | N4: 0.5225 | U4: 2 | V4: 0 | W4: 0.045
C5: 1000 | D5: 2000 | E5: 3500 | F5: 5000 | G5: 10000 | I5: THIS COLUMN IS FOR THE 5% DISCOUNT | O5: Otros dependientes panel
A6: 18 | C6: 169525 | D6: 120950 | E6: 95987.5 | F6: 82775 | G6: 62162.5 | I6: 96337.5 | J6: 69712.5 | K6: 54087.5 | L6: 47025 | M6: 36650 | O6: Edad otros dependientes | P6: ID | Q6: 1000 | R6: 2000 | S6: 3500 | T6: 5000 | U6: 10000
A7: 19 | C7: 175225 | D7: 125012.5 | E7: 99212.5 | F7: 85562.5 | G7: 64250 | I7: 100062.5 | J7: 72400 | K7: 56187.5 | L7: 48812.5 | M7: 38075 | O7: ='INGRESO DE DATOS'!$L$16 -> 1 | P7: 1 | Q7: =IF(O7>0,(IF(O7>18,VLOOKUP(O7,$A$6:$G$72,3,FALSE),Tablas!$C$6)),0) -> 169525 | R7: =IF(O7>0,(IF(O7>18,VLOOKUP(O7,$A$6:$G$72,4,FALSE),Tablas!$D$6)),0) -> 120950 | S7: =IF(O7>0,(IF(O7>18,VLOOKUP(O7,$A$6:$G$72,5,FALSE),Tablas!$E$6)),0) -> 95987.5 | T7: =IF(O7>0,(IF(O7>18,VLOOKUP(O7,$A$6:$G$72,6,FALSE),Tablas!$F$6)),0) -> 82775 | U7: =IF(O7>0,(IF(O7>18,VLOOKUP(O7,$A$6:$G$72,7,FALSE),Tablas!$G$6)),0) -> 62162.5
A8: 20 | C8: 181125 | D8: 129225 | E8: 102550 | F8: 88437.5 | G8: 66412.5 | I8: 104037.5 | J8: 75275 | K8: 58425 | L8: 50775 | M8: 39575 | O8: ='INGRESO DE DATOS'!$L$17 -> 5 | P8: 2 | Q8: =IF(O8>0,(IF(O8>18,VLOOKUP(O8,$A$6:$G$72,3,FALSE),Tablas!$C$6)),0) -> 169525 | R8: =IF(O8>0,(IF(O8>18,VLOOKUP(O8,$A$6:$G$72,4,FALSE),Tablas!$D$6)),0) -> 120950 | S8: =IF(O8>0,(IF(O8>18,VLOOKUP(O8,$A$6:$G$72,5,FALSE),Tablas!$E$6)),0) -> 95987.5 | T8: =IF(O8>0,(IF(O8>18,VLOOKUP(O8,$A$6:$G$72,6,FALSE),Tablas!$F$6)),0) -> 82775 | U8: =IF(O8>0,(IF(O8>18,VLOOKUP(O8,$A$6:$G$72,7,FALSE),Tablas!$G$6)),0) -> 62162.5
A9: 21 | C9: 187212.5 | D9: 133562.5 | E9: 106000 | F9: 91412.5 | G9: 68650 | I9: 107950 | J9: 78100 | K9: 60550 | L9: 52612.5 | M9: 41012.5 | O9: ='INGRESO DE DATOS'!$L$18 -> 8 | P9: 3 | Q9: =IF(O9>0,(IF(O9>18,VLOOKUP(O9,$A$6:$G$72,3,FALSE),Tablas!$C$6)),0) -> 169525 | R9: =IF(O9>0,(IF(O9>18,VLOOKUP(O9,$A$6:$G$72,4,FALSE),Tablas!$D$6)),0) -> 120950 | S9: =IF(O9>0,(IF(O9>18,VLOOKUP(O9,$A$6:$G$72,5,FALSE),Tablas!$E$6)),0) -> 95987.5 | T9: =IF(O9>0,(IF(O9>18,VLOOKUP(O9,$A$6:$G$72,6,FALSE),Tablas!$F$6)),0) -> 82775 | U9: =IF(O9>0,(IF(O9>18,VLOOKUP(O9,$A$6:$G$72,7,FALSE),Tablas!$G$6)),0) -> 62162.5
A10: 22 | C10: 193512.5 | D10: 138062.5 | E10: 109562.5 | F10: 94487.5 | G10: 70962.5 | I10: 111662.5 | J10: 80750 | K10: 62612.5 | L10: 54412.5 | M10: 42400 | O10: ='INGRESO DE DATOS'!$L$19 -> 0 | P10: 4 | Q10: =IF(O10>0,(IF(O10>18,VLOOKUP(O10,$A$6:$G$72,3,FALSE),Tablas!$C$6)),0) -> 0 | R10: =IF(O10>0,(IF(O10>18,VLOOKUP(O10,$A$6:$G$72,4,FALSE),Tablas!$D$6)),0) -> 0 | S10: =IF(O10>0,(IF(O10>18,VLOOKUP(O10,$A$6:$G$72,5,FALSE),Tablas!$E$6)),0) -> 0 | T10: =IF(O10>0,(IF(O10>18,VLOOKUP(O10,$A$6:$G$72,6,FALSE),Tablas!$F$6)),0) -> 0 | U10: =IF(O10>0,(IF(O10>18,VLOOKUP(O10,$A$6:$G$72,7,FALSE),Tablas!$G$6)),0) -> 0
A11: 23 | C11: 200025 | D11: 142712.5 | E11: 113250 | F11: 97675 | G11: 73350 | I11: 115587.5 | J11: 83612.5 | K11: 64825 | L11: 56312.5 | M11: 43875 | O11: ='INGRESO DE DATOS'!$L$20 -> 0 | P11: 5 | Q11: =IF(O11>0,(IF(O11>18,VLOOKUP(O11,$A$6:$G$72,3,FALSE),Tablas!$C$6)),0) -> 0 | R11: =IF(O11>0,(IF(O11>18,VLOOKUP(O11,$A$6:$G$72,4,FALSE),Tablas!$D$6)),0) -> 0 | S11: =IF(O11>0,(IF(O11>18,VLOOKUP(O11,$A$6:$G$72,5,FALSE),Tablas!$E$6)),0) -> 0 | T11: =IF(O11>0,(IF(O11>18,VLOOKUP(O11,$A$6:$G$72,6,FALSE),Tablas!$F$6)),0) -> 0 | U11: =IF(O11>0,(IF(O11>18,VLOOKUP(O11,$A$6:$G$72,7,FALSE),Tablas!$G$6)),0) -> 0
A12: 24 | C12: 206750 | D12: 147512.5 | E12: 117062.5 | F12: 100962.5 | G12: 75812.5 | I12: 119475 | J12: 86375 | K12: 66975 | L12: 58187.5 | M12: 45312.5 | P12: Total | Q12: =SUM(Q7:Q11) -> 508575 | R12: =SUM(R7:R11) -> 362850 | S12: =SUM(S7:S11) -> 287962.5 | T12: 248325 | U12: 186487.5
A13: 25 | C13: 213712.5 | D13: 152475 | E13: 121000 | F13: 104350 | G13: 78375 | I13: 123187.5 | J13: 89037.5 | K13: 69025 | L13: 59975 | M13: 46700
A14: 26 | C14: 220900 | D14: 157600 | E14: 125075 | F14: 107862.5 | G14: 81000 | I14: 127100 | J14: 91887.5 | K14: 71225 | L14: 61875 | M14: 48187.5
A15: 27 | C15: 228337.5 | D15: 162912.5 | E15: 129287.5 | F15: 111500 | G15: 83725 | I15: 131000 | J15: 94687.5 | K15: 73400 | L15: 63762.5 | M15: 49650
A16: 28 | C16: 236025 | D16: 168387.5 | E16: 133637.5 | F16: 115250 | G16: 86550 | I16: 135000 | J16: 97525 | K16: 75625 | L16: 65675 | M16: 51137.5
A17: 29 | C17: 243962.5 | D17: 174050 | E17: 138125 | F17: 119125 | G17: 89462.5 | I17: 140075 | J17: 101187.5 | K17: 78437.5 | L17: 68125 | M17: 53025
A18: 30 | C18: 252175 | D18: 179912.5 | E18: 142775 | F18: 123137.5 | G18: 92475 | I18: 145362.5 | J18: 105012.5 | K18: 81337.5 | L18: 70662.5 | M18: 55000
A19: 31 | C19: 260650 | D19: 185962.5 | E19: 147587.5 | F19: 127275 | G19: 95587.5 | I19: 150587.5 | J19: 108800 | K19: 84300 | L19: 73200 | M19: 56975
A20: 32 | C20: 269425 | D20: 192225 | E20: 152550 | F20: 131562.5 | G20: 98800 | I20: 155975 | J20: 112637.5 | K20: 87262.5 | L20: 75800 | M20: 58975
A21: 33 | C21: 278487.5 | D21: 198687.5 | E21: 157687.5 | F21: 135987.5 | G21: 102125 | I21: 159162.5 | J21: 114950 | K21: 89037.5 | L21: 77312.5 | M21: 60150
A22: 34 | C22: 289312.5 | D22: 206412.5 | E22: 163812.5 | F22: 141275 | G22: 106087.5 | I22: 162550 | J22: 117387.5 | K22: 90900 | L22: 78950 | M22: 61412.5
A23: 35 | C23: 294062.5 | D23: 209800 | E23: 166500 | F23: 143587.5 | G23: 107837.5 | I23: 165900 | J23: 119800 | K23: 92787.5 | L23: 80575 | M23: 62675
A24: 36 | C24: 298887.5 | D24: 213237.5 | E24: 169225 | F24: 145950 | G24: 109600 | I24: 169262.5 | J24: 122237.5 | K24: 94650 | L24: 82175 | M24: 63937.5
A25: 37 | C25: 303787.5 | D25: 216737.5 | E25: 172000 | F25: 148337.5 | G25: 111400 | I25: 172612.5 | J25: 124637.5 | K25: 96512.5 | L25: 83787.5 | M25: 65187.5
A26: 38 | C26: 308775 | D26: 220300 | E26: 174825 | F26: 150775 | G26: 113225 | I26: 175550 | J26: 126737.5 | K26: 98112.5 | L26: 85187.5 | M26: 66262.5
A27: 39 | C27: 313837.5 | D27: 223912.5 | E27: 177700 | F27: 153250 | G27: 115087.5 | I27: 178275 | J27: 128737.5 | K27: 99675 | L27: 86550 | M27: 67312.5
A28: 40 | C28: 318987.5 | D28: 227587.5 | E28: 180612.5 | F28: 155762.5 | G28: 116975 | I28: 181162.5 | J28: 130812.5 | K28: 101300 | L28: 87937.5 | M28: 68387.5
A29: 41 | C29: 324225 | D29: 231325 | E29: 183575 | F29: 158325 | G29: 118900 | I29: 184012.5 | J29: 132825 | K29: 102850 | L29: 89287.5 | M29: 69425
A30: 42 | C30: 329550 | D30: 235112.5 | E30: 186587.5 | F30: 160912.5 | G30: 120850 | I30: 186887.5 | J30: 134937.5 | K30: 104475 | L30: 90687.5 | M30: 70537.5
A31: 43 | C31: 334950 | D31: 238975 | E31: 189650 | F31: 163562.5 | G31: 122825 | I31: 190275 | J31: 137350 | K31: 106350 | L31: 92325 | M31: 71812.5
A32: 44 | C32: 340450 | D32: 242900 | E32: 192762.5 | F32: 166237.5 | G32: 124850 | I32: 193787.5 | J32: 139900 | K32: 108287.5 | L32: 94000 | M32: 73100
A33: 45 | C33: 346037.5 | D33: 246887.5 | E33: 195925 | F33: 168975 | G33: 126887.5 | I33: 197187.5 | J33: 142337.5 | K33: 110200 | L33: 95662.5 | M33: 74375
A34: 46 | C34: 351712.5 | D34: 250937.5 | E34: 199137.5 | F34: 171750 | G34: 128975 | I34: 200650 | J34: 144837.5 | K34: 112087.5 | L34: 97312.5 | M34: 75662.5
A35: 47 | C35: 357487.5 | D35: 255050 | E35: 202412.5 | F35: 174562.5 | G35: 131087.5 | I35: 204037.5 | J35: 147250 | K35: 113987.5 | L35: 98950 | M35: 76925
A36: 48 | C36: 363362.5 | D36: 259237.5 | E36: 205737.5 | F36: 177425 | G36: 133237.5 | I36: 208800 | J36: 150700 | K36: 117137.5 | L36: 101687.5 | M36: 79050
A37: 49 | C37: 371512.5 | D37: 265050 | E37: 210350 | F37: 181412.5 | G37: 136237.5 | I37: 213575 | J37: 154125 | K37: 120275 | L37: 104412.5 | M37: 81150
A38: 50 | C38: 385325 | D38: 274900 | E38: 218162.5 | F38: 188150 | G38: 141300 | I38: 219462.5 | J38: 158362.5 | K38: 123562.5 | L38: 107262.5 | M38: 83362.5
A39: 51 | C39: 399637.5 | D39: 285125 | E39: 226275 | F39: 195150 | G39: 146550 | I39: 225062.5 | J39: 162362.5 | K39: 126725 | L39: 110000 | M39: 85512.5
A40: 52 | C40: 414500 | D40: 295725 | E40: 234687.5 | F40: 202400 | G40: 152000 | I40: 230700 | J40: 166450 | K40: 129912.5 | L40: 112737.5 | M40: 87637.5
A41: 53 | C41: 429900 | D41: 306712.5 | E41: 243412.5 | F41: 209925 | G41: 157650 | I41: 241150 | J41: 173987.5 | K41: 135712.5 | L41: 117787.5 | M41: 91562.5
A42: 54 | C42: 445875 | D42: 318112.5 | E42: 252462.5 | F42: 217725 | G42: 163500 | I42: 251462.5 | J42: 181412.5 | K42: 141487.5 | L42: 122800 | M42: 95450
A43: 55 | C43: 462450 | D43: 329937.5 | E43: 261837.5 | F43: 225812.5 | G43: 169587.5 | I43: 261975 | J43: 188975 | K43: 147387.5 | L43: 127937.5 | M43: 99387.5
A44: 56 | C44: 479575 | D44: 342150 | E44: 271537.5 | F44: 234175 | G44: 175862.5 | I44: 272400 | J44: 196487.5 | K44: 153250 | L44: 132987.5 | M44: 103350
A45: 57 | C45: 505925 | D45: 360950 | E45: 286450 | F45: 247037.5 | G45: 185525 | I45: 282900 | J45: 204050 | K45: 159125 | L45: 138087.5 | M45: 107287.5
A46: 58 | C46: 533712.5 | D46: 380775 | E46: 302187.5 | F46: 260612.5 | G46: 195712.5 | I46: 300812.5 | J46: 216937.5 | K46: 169162.5 | L46: 146800 | M46: 114025
A47: 59 | C47: 563037.5 | D47: 401700 | E47: 318800 | F47: 274937.5 | G47: 206462.5 | I47: 318700 | J47: 229837.5 | K47: 179175 | L47: 155487.5 | M47: 120775
A48: 60 | C48: 593975 | D48: 423775 | E48: 336312.5 | F48: 290037.5 | G48: 217812.5 | I48: 336762.5 | J48: 242825 | K48: 189312.5 | L48: 164275 | M48: 127575
A49: 61 | C49: 626612.5 | D49: 447062.5 | E49: 354787.5 | F49: 305975 | G49: 229775 | I49: 354600 | J49: 255637.5 | K49: 199287.5 | L49: 172912.5 | M49: 134287.5
A50: 62 | C50: 661037.5 | D50: 471625 | E50: 374275 | F50: 322787.5 | G50: 242400 | I50: 372650 | J50: 268662.5 | K50: 209425 | L50: 181700 | M50: 141125
A51: 63 | C51: 697362.5 | D51: 497537.5 | E51: 394850 | F51: 340525 | G51: 255725 | I51: 400437.5 | J51: 288662.5 | K51: 225025 | L51: 195225 | M51: 151587.5
A52: 64 | C52: 735675 | D52: 524862.5 | E52: 416537.5 | F52: 359225 | G52: 269775 | I52: 428237.5 | J52: 308712.5 | K52: 240625 | L52: 208750 | M52: 162087.5
A53: 65 | C53: 776100 | D53: 553700 | E53: 439425 | F53: 378962.5 | G53: 284600 | I53: 456125 | J53: 328750 | K53: 256200 | L53: 222287.5 | M53: 172587.5
A54: 66 | C54: 818737.5 | D54: 584125 | E54: 463575 | F54: 399787.5 | G54: 300225 | I54: 483887.5 | J54: 348750 | K54: 271800 | L54: 235787.5 | M54: 183050
A55: 67 | C55: 863725 | D55: 616225 | E55: 489037.5 | F55: 421750 | G55: 316725 | I55: 511837.5 | J55: 368875 | K55: 287450 | L55: 249350 | M55: 193575
A56: 68 | C56: 911175 | D56: 650075 | E56: 515912.5 | F56: 444925 | G56: 334125 | I56: 550312.5 | J56: 396600 | K56: 309000 | L56: 268025 | M56: 208062.5
A57: 69 | C57: 961237.5 | D57: 685800 | E57: 544250 | F57: 469375 | G57: 352487.5 | I57: 588925 | J57: 424387.5 | K57: 330650 | L57: 286812.5 | M57: 222612.5
A58: 70 | C58: 1014050 | D58: 723475 | E58: 574162.5 | F58: 495162.5 | G58: 371850 | I58: 627587.5 | J58: 452237.5 | K58: 352325 | L58: 305587.5 | M58: 237212.5
A59: 71 | C59: 1069775 | D59: 763225 | E59: 605700 | F59: 522375 | G59: 392287.5 | I59: 666325 | J59: 480100 | K59: 374050 | L59: 324437.5 | M59: 251800
A60: 72 | C60: 1128550 | D60: 805162.5 | E60: 638987.5 | F60: 551075 | G60: 413837.5 | I60: 704950 | J60: 507912.5 | K60: 395700 | L60: 343200 | M60: 266362.5
A61: 73 | C61: 1190550 | D61: 849400 | E61: 674087.5 | F61: 581350 | G61: 436575 | I61: 750825 | J61: 540950 | K61: 421375 | L61: 365475 | M61: 283625
A62: 74 | C62: 1255962.5 | D62: 896075 | E62: 711125 | F62: 613287.5 | G62: 460562.5 | I62: 796675 | J62: 573987.5 | K62: 447100 | L62: 387787.5 | M62: 300937.5
A63: 75 | C63: 1324975 | D63: 945300 | E63: 750200 | F63: 646987.5 | G63: 485875 | I63: 842500 | J63: 606987.5 | K63: 472775 | L63: 410050 | M63: 318200
A64: 76 | C64: 1397775 | D64: 997237.5 | E64: 791425 | F64: 682537.5 | G64: 512562.5 | I64: 888400 | J64: 640000 | K64: 498512.5 | L64: 432375 | M64: 335525
A65: 77 | C65: 1474575 | D65: 1052037.5 | E65: 834900 | F65: 720037.5 | G65: 540725 | I65: 934237.5 | J65: 673000 | K65: 524187.5 | L65: 454612.5 | M65: 352762.5
A66: 78 | C66: 1555587.5 | D66: 1109837.5 | E66: 880775 | F66: 759600 | G66: 570437.5 | I66: 981025 | J66: 706700 | K66: 550400 | L66: 477362.5 | M66: 370412.5
A67: 79 | C67: 1641062.5 | D67: 1170812.5 | E67: 929175 | F67: 801325 | G67: 601775 | I67: 1028037.5 | J67: 740525 | K67: 576737.5 | L67: 500200 | M67: 388125
A68: 80 | C68: 1731225 | D68: 1235137.5 | E68: 980225 | F68: 845362.5 | G68: 634837.5 | I68: 1075075 | J68: 774425 | K68: 603150 | L68: 523112.5 | M68: 405862.5
A69: 81 | C69: 1826350 | D69: 1303000 | E69: 1034075 | F69: 891800 | G69: 669725 | I69: 1121900 | J69: 808125 | K69: 629387.5 | L69: 545875 | M69: 423537.5
A70: 82 | C70: 1926687.5 | D70: 1374600 | E70: 1090900 | F70: 940800 | G70: 706512.5 | I70: 1168887.5 | J70: 841962.5 | K70: 655737.5 | L70: 568712.5 | M70: 441237.5
A71: 83 | C71: 2032550 | D71: 1450125 | E71: 1150837.5 | F71: 992500 | G71: 745337.5 | I71: 1215912.5 | J71: 875825 | K71: 682100 | L71: 591550 | M71: 458975
A72: 84 | B72: o más | C72: 2144225 | D72: 1529800 | E72: 1214062.5 | F72: 1047025 | G72: 786287.5 | I72: 1262825 | J72: 909600 | K72: 708350 | L72: 614325 | M72: 476637.5
A73: 1 | B73: Hijo | C73: 72775 | D73: 51925 | E73: 41212.5 | F73: 35537.5 | G73: 26687.5 | I73: 39537.5 | J73: 28475 | K73: 23362.5 | L73: 20237.5 | M73: 15700
A74: 2 | B74: Hijos | C74: 114675 | D74: 81812.5 | E74: 64925 | F74: 56000 | G74: 42050 | I74: 62287.5 | J74: 44862.5 | K74: 36750 | L74: 31875 | M74: 24712.5
A75: 3 | B75: Hijos o más | C75: 167312.5 | D75: 119375 | E75: 94737.5 | F75: 81700 | G75: 61350 | I75: 90862.5 | J75: 65412.5 | K75: 53612.5 | L75: 46487.5 | M75: 36062.5
A77: BUPA GLOBAL ELITE - MENSUALES
A78: EDAD
C79: 1000 | D79: 2000 | E79: 3500
A80: 18 | C80: =C6*$K$2 -> 15257.25 | D80: =D6*$K$2 -> 10885.5 | E80: 8638.875 | F80: 7449.75 | G80: 5594.625
A81: 19 | C81: =C7*$K$2 -> 15770.25 | D81: 11251.125 | E81: 8929.125 | F81: 7700.625 | G81: 5782.5
A82: 20 | C82: =C8*$K$2 -> 16301.25 | D82: 11630.25 | E82: 9229.5 | F82: 7959.375 | G82: 5977.125
A83: 21 | C83: =C9*$K$2 -> 16849.125 | D83: 12020.625 | E83: 9540 | F83: 8227.125 | G83: 6178.5
A84: 22 | C84: =C10*$K$2 -> 17416.125 | D84: 12425.625 | E84: 9860.625 | F84: 8503.875 | G84: 6386.625
A85: 23 | C85: =C11*$K$2 -> 18002.25 | D85: 12844.125 | E85: 10192.5 | F85: 8790.75 | G85: 6601.5
A86: 24 | C86: =C12*$K$2 -> 18607.5 | D86: 13276.125 | E86: 10535.625 | F86: 9086.625 | G86: 6823.125
A87: 25 | C87: =C13*$K$2 -> 19234.125 | D87: 13722.75 | E87: 10890 | F87: 9391.5 | G87: 7053.75
A88: 26 | C88: =C14*$K$2 -> 19881 | D88: 14184 | E88: 11256.75 | F88: 9707.625 | G88: 7290
A89: 27 | C89: =C15*$K$2 -> 20550.375 | D89: 14662.125 | E89: 11635.875 | F89: 10035 | G89: 7535.25
A90: 28 | C90: =C16*$K$2 -> 21242.25 | D90: 15154.875 | E90: 12027.375 | F90: 10372.5 | G90: 7789.5
A91: 29 | C91: =C17*$K$2 -> 21956.625 | D91: 15664.5 | E91: 12431.25 | F91: 10721.25 | G91: 8051.625
A92: 30 | C92: =C18*$K$2 -> 22695.75 | D92: 16192.125 | E92: 12849.75 | F92: 11082.375 | G92: 8322.75
A93: 31 | C93: =C19*$K$2 -> 23458.5 | D93: 16736.625 | E93: 13282.875 | F93: 11454.75 | G93: 8602.875
A94: 32 | C94: =C20*$K$2 -> 24248.25 | D94: 17300.25 | E94: 13729.5 | F94: 11840.625 | G94: 8892
A95: 33 | C95: =C21*$K$2 -> 25063.875 | D95: 17881.875 | E95: 14191.875 | F95: 12238.875 | G95: 9191.25
A96: 34 | C96: =C22*$K$2 -> 26038.125 | D96: 18577.125 | E96: 14743.125 | F96: 12714.75 | G96: 9547.875
A97: 35 | C97: =C23*$K$2 -> 26465.625 | D97: 18882 | E97: 14985 | F97: 12922.875 | G97: 9705.375
A98: 36 | C98: =C24*$K$2 -> 26899.875 | D98: 19191.375 | E98: 15230.25 | F98: 13135.5 | G98: 9864
A99: 37 | C99: =C25*$K$2 -> 27340.875 | D99: 19506.375 | E99: 15480 | F99: 13350.375 | G99: 10026
A100: 38 | C100: =C26*$K$2 -> 27789.75 | D100: 19827 | E100: 15734.25 | F100: 13569.75 | G100: 10190.25
A101: 39 | C101: =C27*$K$2 -> 28245.375 | D101: 20152.125 | E101: 15993 | F101: 13792.5 | G101: 10357.875
A102: 40 | C102: =C28*$K$2 -> 28708.875 | D102: 20482.875 | E102: 16255.125 | F102: 14018.625 | G102: 10527.75
A103: 41 | C103: =C29*$K$2 -> 29180.25 | D103: 20819.25 | E103: 16521.75 | F103: 14249.25 | G103: 10701
A104: 42 | C104: =C30*$K$2 -> 29659.5 | D104: 21160.125 | E104: 16792.875 | F104: 14482.125 | G104: 10876.5
A105: 43 | C105: =C31*$K$2 -> 30145.5 | D105: 21507.75 | E105: 17068.5 | F105: 14720.625 | G105: 11054.25
A106: 44 | C106: =C32*$K$2 -> 30640.5 | D106: 21861 | E106: 17348.625 | F106: 14961.375 | G106: 11236.5
A107: 45 | C107: =C33*$K$2 -> 31143.375 | D107: 22219.875 | E107: 17633.25 | F107: 15207.75 | G107: 11419.875
A108: 46 | C108: =C34*$K$2 -> 31654.125 | D108: 22584.375 | E108: 17922.375 | F108: 15457.5 | G108: 11607.75
A109: 47 | C109: =C35*$K$2 -> 32173.875 | D109: 22954.5 | E109: 18217.125 | F109: 15710.625 | G109: 11797.875
A110: 48 | C110: =C36*$K$2 -> 32702.625 | D110: 23331.375 | E110: 18516.375 | F110: 15968.25 | G110: 11991.375
A111: 49 | C111: =C37*$K$2 -> 33436.125 | D111: 23854.5 | E111: 18931.5 | F111: 16327.125 | G111: 12261.375
A112: 50 | C112: =C38*$K$2 -> 34679.25 | D112: 24741 | E112: 19634.625 | F112: 16933.5 | G112: 12717
A113: 51 | C113: =C39*$K$2 -> 35967.375 | D113: 25661.25 | E113: 20364.75 | F113: 17563.5 | G113: 13189.5
A114: 52 | C114: =C40*$K$2 -> 37305 | D114: 26615.25 | E114: 21121.875 | F114: 18216 | G114: 13680
A115: 53 | C115: =C41*$K$2 -> 38691 | D115: 27604.125 | E115: 21907.125 | F115: 18893.25 | G115: 14188.5
A116: 54 | C116: =C42*$K$2 -> 40128.75 | D116: 28630.125 | E116: 22721.625 | F116: 19595.25 | G116: 14715
A117: 55 | C117: =C43*$K$2 -> 41620.5 | D117: 29694.375 | E117: 23565.375 | F117: 20323.125 | G117: 15262.875
A118: 56 | C118: =C44*$K$2 -> 43161.75 | D118: 30793.5 | E118: 24438.375 | F118: 21075.75 | G118: 15827.625
A119: 57 | C119: =C45*$K$2 -> 45533.25 | D119: 32485.5 | E119: 25780.5 | F119: 22233.375 | G119: 16697.25
A120: 58 | C120: =C46*$K$2 -> 48034.125 | D120: 34269.75 | E120: 27196.875 | F120: 23455.125 | G120: 17614.125
A121: 59 | C121: =C47*$K$2 -> 50673.375 | D121: 36153 | E121: 28692 | F121: 24744.375 | G121: 18581.625
A122: 60 | C122: =C48*$K$2 -> 53457.75 | D122: 38139.75 | E122: 30268.125 | F122: 26103.375 | G122: 19603.125
A123: 61 | C123: =C49*$K$2 -> 56395.125 | D123: 40235.625 | E123: 31930.875 | F123: 27537.75 | G123: 20679.75
A124: 62 | C124: =C50*$K$2 -> 59493.375 | D124: 42446.25 | E124: 33684.75 | F124: 29050.875 | G124: 21816
A125: 63 | C125: =C51*$K$2 -> 62762.625 | D125: 44778.375 | E125: 35536.5 | F125: 30647.25 | G125: 23015.25
A126: 64 | C126: =C52*$K$2 -> 66210.75 | D126: 47237.625 | E126: 37488.375 | F126: 32330.25 | G126: 24279.75
A127: 65 | C127: =C53*$K$2 -> 69849 | D127: 49833 | E127: 39548.25 | F127: 34106.625 | G127: 25614
A128: 66 | C128: =C54*$K$2 -> 73686.375 | D128: 52571.25 | E128: 41721.75 | F128: 35980.875 | G128: 27020.25
A129: 67 | C129: =C55*$K$2 -> 77735.25 | D129: 55460.25 | E129: 44013.375 | F129: 37957.5 | G129: 28505.25
A130: 68 | C130: =C56*$K$2 -> 82005.75 | D130: 58506.75 | E130: 46432.125 | F130: 40043.25 | G130: 30071.25
A131: 69 | C131: =C57*$K$2 -> 86511.375 | D131: 61722 | E131: 48982.5 | F131: 42243.75 | G131: 31723.875
A132: 70 | C132: =C58*$K$2 -> 91264.5 | D132: 65112.75 | E132: 51674.625 | F132: 44564.625 | G132: 33466.5
A133: 71 | C133: =C59*$K$2 -> 96279.75 | D133: 68690.25 | E133: 54513 | F133: 47013.75 | G133: 35305.875
A134: 72 | C134: =C60*$K$2 -> 101569.5 | D134: 72464.625 | E134: 57508.875 | F134: 49596.75 | G134: 37245.375
A135: 73 | C135: =C61*$K$2 -> 107149.5 | D135: 76446 | E135: 60667.875 | F135: 52321.5 | G135: 39291.75
A136: 74 | C136: =C62*$K$2 -> 113036.625 | D136: 80646.75 | E136: 64001.25 | F136: 55195.875 | G136: 41450.625
A137: 75 | C137: =C63*$K$2 -> 119247.75 | D137: 85077 | E137: 67518 | F137: 58228.875 | G137: 43728.75
A138: 76 | C138: =C64*$K$2 -> 125799.75 | D138: 89751.375 | E138: 71228.25 | F138: 61428.375 | G138: 46130.625
A139: 77 | C139: =C65*$K$2 -> 132711.75 | D139: 94683.375 | E139: 75141 | F139: 64803.375 | G139: 48665.25
A140: 78 | C140: =C66*$K$2 -> 140002.875 | D140: 99885.375 | E140: 79269.75 | F140: 68364 | G140: 51339.375
A141: 79 | C141: =C67*$K$2 -> 147695.625 | D141: 105373.125 | E141: 83625.75 | F141: 72119.25 | G141: 54159.75
A142: 80 | C142: =C68*$K$2 -> 155810.25 | D142: 111162.375 | E142: 88220.25 | F142: 76082.625 | G142: 57135.375
A143: 81 | C143: =C69*$K$2 -> 164371.5 | D143: 117270 | E143: 93066.75 | F143: 80262 | G143: 60275.25
A144: 82 | C144: =C70*$K$2 -> 173401.875 | D144: 123714 | E144: 98181 | F144: 84672 | G144: 63586.125
A145: 83 | C145: =C71*$K$2 -> 182929.5 | D145: 130511.25 | E145: 103575.375 | F145: 89325 | G145: 67080.375
A146: 84 | B146: o más | C146: =C72*$K$2 -> 192980.25 | D146: 137682 | E146: 109265.625 | F146: 94232.25 | G146: 70765.875
A147: 1 | B147: Hijo | C147: =C73*$K$2 -> 6549.75 | D147: 4673.25 | E147: 3709.125 | F147: 3198.375 | G147: 2401.875
A148: 2 | B148: Hijos | C148: =C74*$K$2 -> 10320.75 | D148: 7363.125 | E148: 5843.25 | F148: 5040 | G148: 3784.5
A149: 3 | B149: Hijos o más | C149: =C75*$K$2 -> 15058.125 | D149: 10743.75 | E149: 8526.375 | F149: 7353 | G149: 5521.5
A151: BUPA GLOBAL PREMIER
A152: TARIFAS ANUALES
A153: EDAD
C154: 1000 | D154: 2000 | E154: 5000 | F154: 10000 | O154: Otros dependientes panel
A155: 18 | C155: 110025 | D155: 79437.5 | E155: 55400 | F155: 41812.5 | I155: 62975 | J155: 45637.5 | K155: 32862.5 | L155: 24662.5 | N155: 59826.25 | O155: Edad otros dependientes | P155: ID | Q155: 1000 | R155: 2000 | S155: 5000 | T155: 10000
A156: 19 | C156: 113725 | D156: 82100 | E156: 57262.5 | F156: 43212.5 | I156: 65312.5 | J156: 47312.5 | K156: 34050 | L156: 25562.5 | N156: 62046.875 | O156: ='INGRESO DE DATOS'!$L$16 -> 1 | P156: 1 | Q156: =IF(O156>0,(IF(O156>18,VLOOKUP(O156,$A$155:$G$221,3,FALSE),Tablas!$C$155)),0) -> 110025 | R156: =IF(O156>0,(IF(O156>18,VLOOKUP(O156,$A$155:$G$221,4,FALSE),Tablas!$D$155)),0) -> 79437.5 | S156: =IF(O156>0,(IF(O156>18,VLOOKUP(O156,$A$155:$G$221,5,FALSE),Tablas!$E$155)),0) -> 55400 | T156: =IF(O156>0,(IF(O156>18,VLOOKUP(O156,$A$155:$G$221,6,FALSE),Tablas!$F$155)),0) -> 41812.5
A157: 20 | C157: 117550 | D157: 84875 | E157: 59187.5 | F157: 44662.5 | I157: 67862.5 | J157: 49150 | K157: 35350 | L157: 26525 | N157: 64469.375 | O157: ='INGRESO DE DATOS'!$L$17 -> 5 | P157: 2 | Q157: =IF(O157>0,(IF(O157>18,VLOOKUP(O157,$A$155:$G$221,3,FALSE),Tablas!$C$155)),0) -> 110025 | R157: =IF(O157>0,(IF(O157>18,VLOOKUP(O157,$A$155:$G$221,4,FALSE),Tablas!$D$155)),0) -> 79437.5 | S157: =IF(O157>0,(IF(O157>18,VLOOKUP(O157,$A$155:$G$221,5,FALSE),Tablas!$E$155)),0) -> 55400 | T157: =IF(O157>0,(IF(O157>18,VLOOKUP(O157,$A$155:$G$221,6,FALSE),Tablas!$F$155)),0) -> 41812.5
A158: 21 | C158: 121500 | D158: 87725 | E158: 61175 | F158: 46175 | I158: 70437.5 | J158: 51012.5 | K158: 36675 | L158: 27500 | N158: 66915.625 | O158: ='INGRESO DE DATOS'!$L$18 -> 8 | P158: 3 | Q158: =IF(O158>0,(IF(O158>18,VLOOKUP(O158,$A$155:$G$221,3,FALSE),Tablas!$C$155)),0) -> 110025 | R158: =IF(O158>0,(IF(O158>18,VLOOKUP(O158,$A$155:$G$221,4,FALSE),Tablas!$D$155)),0) -> 79437.5 | S158: =IF(O158>0,(IF(O158>18,VLOOKUP(O158,$A$155:$G$221,5,FALSE),Tablas!$E$155)),0) -> 55400 | T158: =IF(O158>0,(IF(O158>18,VLOOKUP(O158,$A$155:$G$221,6,FALSE),Tablas!$F$155)),0) -> 41812.5
A159: 22 | C159: 125587.5 | D159: 90675 | E159: 63237.5 | F159: 47725 | I159: 72825 | J159: 52712.5 | K159: 37887.5 | L159: 28412.5 | N159: 69183.75 | O159: ='INGRESO DE DATOS'!$L$19 -> 0 | P159: 4 | Q159: =IF(O159>0,(IF(O159>18,VLOOKUP(O159,$A$155:$G$221,3,FALSE),Tablas!$C$155)),0) -> 0 | R159: =IF(O159>0,(IF(O159>18,VLOOKUP(O159,$A$155:$G$221,4,FALSE),Tablas!$D$155)),0) -> 0 | S159: =IF(O159>0,(IF(O159>18,VLOOKUP(O159,$A$155:$G$221,5,FALSE),Tablas!$E$155)),0) -> 0 | T159: =IF(O159>0,(IF(O159>18,VLOOKUP(O159,$A$155:$G$221,6,FALSE),Tablas!$F$155)),0) -> 0
A160: 23 | C160: 129812.5 | D160: 93725 | E160: 65362.5 | F160: 49325 | I160: 75412.5 | J160: 54575 | K160: 39225 | L160: 29387.5 | N160: 71641.875 | O160: ='INGRESO DE DATOS'!$L$20 -> 0 | P160: 5 | Q160: =IF(O160>0,(IF(O160>18,VLOOKUP(O160,$A$155:$G$221,3,FALSE),Tablas!$C$155)),0) -> 0 | R160: =IF(O160>0,(IF(O160>18,VLOOKUP(O160,$A$155:$G$221,4,FALSE),Tablas!$D$155)),0) -> 0 | S160: =IF(O160>0,(IF(O160>18,VLOOKUP(O160,$A$155:$G$221,5,FALSE),Tablas!$E$155)),0) -> 0 | T160: =IF(O160>0,(IF(O160>18,VLOOKUP(O160,$A$155:$G$221,6,FALSE),Tablas!$F$155)),0) -> 0
A161: 24 | C161: 134187.5 | D161: 96875 | E161: 67562.5 | F161: 50987.5 | I161: 77900 | J161: 56375 | K161: 40512.5 | L161: 30350 | N161: 74005 | P161: Total | Q161: =SUM(Q156:Q160) -> 330075 | R161: =SUM(R156:R160) -> 238312.5 | S161: =SUM(S156:S160) -> 166200 | T161: =SUM(T156:T160) -> 125437.5
A162: 25 | C162: 138700 | D162: 100137.5 | E162: 69837.5 | F162: 52700 | I162: 79475 | J162: 57512.5 | K162: 41300 | L162: 30937.5 | N162: 75501.25
A163: 26 | C163: 143362.5 | D163: 103512.5 | E163: 72187.5 | F163: 54475 | I163: 82000 | J163: 59312.5 | K163: 42612.5 | L163: 31912.5 | N163: 77900
A164: 27 | C164: 148187.5 | D164: 107000 | E164: 74612.5 | F164: 56312.5 | I164: 84537.5 | J164: 61150 | K164: 43912.5 | L164: 32887.5 | N164: 80310.625
A165: 28 | C165: 153175 | D165: 110600 | E165: 77125 | F165: 58212.5 | I165: 87000 | J165: 62912.5 | K165: 45175 | L165: 33825 | N165: 82650
A166: 29 | C166: 158325 | D166: 114312.5 | E166: 79725 | F166: 60162.5 | I166: 90287.5 | J166: 65287.5 | K166: 46825 | L166: 35037.5 | N166: 85773.125
A167: 30 | C167: 163662.5 | D167: 118162.5 | E167: 82400 | F167: 62187.5 | I167: 93675 | J167: 67725 | K167: 48587.5 | L167: 36375 | N167: 88991.25
A168: 31 | C168: 169162.5 | D168: 122137.5 | E168: 85175 | F168: 64287.5 | I168: 97062.5 | J168: 70162.5 | K168: 50337.5 | L168: 37662.5 | N168: 92209.375
A169: 32 | C169: 174862.5 | D169: 126250 | E169: 88037.5 | F169: 66450 | I169: 100450 | J169: 72587.5 | K169: 52075 | L169: 38937.5 | N169: 95427.5
A170: 33 | C170: 180737.5 | D170: 130500 | E170: 91000 | F170: 68687.5 | I170: 102612.5 | J170: 74137.5 | K170: 53162.5 | L170: 39750 | N170: 97481.875
A171: 34 | C171: 186825 | D171: 134887.5 | E171: 94062.5 | F171: 70987.5 | I171: 104725 | J171: 75662.5 | K171: 54262.5 | L171: 40587.5 | N171: 99488.75
A172: 35 | C172: 190850 | D172: 137787.5 | E172: 96087.5 | F172: 72525 | I172: 106862.5 | J172: 77200 | K172: 55325 | L172: 41375 | N172: 101519.375
A173: 36 | C173: 193975 | D173: 140050 | E173: 97662.5 | F173: 73712.5 | I173: 109037.5 | J173: 78775 | K173: 56450 | L173: 42212.5 | N173: 103585.625
A174: 37 | C174: 197162.5 | D174: 142350 | E174: 99275 | F174: 74925 | I174: 111112.5 | J174: 80262.5 | K174: 57537.5 | L174: 43025 | N174: 105556.875
A175: 38 | C175: 200400 | D175: 144687.5 | E175: 100900 | F175: 76150 | I175: 113025 | J175: 81625 | K175: 58487.5 | L175: 43712.5 | N175: 107373.75
A176: 39 | C176: 203687.5 | D176: 147062.5 | E176: 102550 | F176: 77400 | I176: 115962.5 | J176: 83750 | K176: 60000 | L176: 44850 | N176: 110164.375
A177: 40 | C177: 207025 | D177: 149475 | E177: 104237.5 | F177: 78675 | I177: 117850 | J177: 85100 | K177: 61000 | L177: 45587.5 | N177: 111957.5
A178: 41 | C178: 210425 | D178: 151925 | E178: 105950 | F178: 79962.5 | I178: 119675 | J178: 86450 | K178: 61937.5 | L178: 46275 | N178: 113691.25
A179: 42 | C179: 213875 | D179: 154425 | E179: 107687.5 | F179: 81275 | I179: 121562.5 | J179: 87787.5 | K179: 62875 | L179: 47000 | N179: 115484.375
A180: 43 | C180: 217387.5 | D180: 156950 | E180: 109450 | F180: 82612.5 | I180: 123750 | J180: 89350 | K180: 64025 | L180: 47837.5 | N180: 117562.5
A181: 44 | C181: 220950 | D181: 159525 | E181: 111250 | F181: 83962.5 | I181: 126050 | J181: 90987.5 | K181: 65175 | L181: 48687.5 | N181: 119747.5
A182: 45 | C182: 224575 | D182: 162150 | E182: 113075 | F182: 85337.5 | I182: 128200 | J182: 92550 | K182: 66275 | L182: 49512.5 | N182: 121790
A183: 46 | C183: 228262.5 | D183: 164812.5 | E183: 114937.5 | F183: 86737.5 | I183: 130512.5 | J183: 94212.5 | K183: 67437.5 | L183: 50387.5 | N183: 123986.875
A184: 47 | C184: 232012.5 | D184: 167512.5 | E184: 116812.5 | F184: 88162.5 | I184: 132662.5 | J184: 95762.5 | K184: 68550 | L184: 51225 | N184: 126029.375
A185: 48 | C185: 235812.5 | D185: 170262.5 | E185: 118737.5 | F185: 89612.5 | I185: 135825 | J185: 98025 | K185: 71137.5 | L185: 53150 | N185: 129033.75
A186: 49 | C186: 241112.5 | D186: 174075 | E186: 121400 | F186: 91625 | I186: 139550 | J186: 100725 | K186: 73100 | L186: 54587.5 | N186: 132572.5
A187: 50 | C187: 250075 | D187: 180550 | E187: 125912.5 | F187: 95025 | I187: 143337.5 | J187: 103450 | K187: 75050 | L187: 56037.5 | N187: 136170.625
A188: 51 | C188: 259362.5 | D188: 187262.5 | E188: 130587.5 | F188: 98562.5 | I188: 147037.5 | J188: 106100 | K188: 76975 | L188: 57462.5 | N188: 139685.625
A189: 52 | C189: 269012.5 | D189: 194225 | E189: 135450 | F189: 102225 | I189: 152187.5 | J189: 109800 | K189: 79650 | L189: 59450 | N189: 144578.125
A190: 53 | C190: 279000 | D190: 201437.5 | E190: 140475 | F190: 106025 | I190: 160762.5 | J190: 115975 | K190: 84112.5 | L190: 62787.5 | N190: 152724.375
A191: 54 | C191: 289375 | D191: 208925 | E191: 145700 | F191: 109962.5 | I191: 170950 | J191: 123312.5 | K191: 89387.5 | L191: 66725 | N191: 162402.5
A192: 55 | C192: 300137.5 | D192: 216700 | E192: 151112.5 | F192: 114050 | I192: 179862.5 | J192: 129725 | K192: 94025 | L192: 70162.5 | N192: 170869.375
A193: 56 | C193: 311237.5 | D193: 224712.5 | E193: 156712.5 | F193: 118275 | I193: 187037.5 | J193: 134900 | K193: 97750 | L193: 72925 | N193: 177685.625
A194: 57 | C194: 328337.5 | D194: 237062.5 | E194: 165325 | F194: 124775 | I194: 196137.5 | J194: 141425 | K194: 102500 | L194: 76450 | N194: 186330.625
A195: 58 | C195: 348037.5 | D195: 251287.5 | E195: 175237.5 | F195: 132250 | I195: 210462.5 | J195: 151737.5 | K195: 109950 | L195: 82012.5 | N195: 199939.375
A196: 59 | C196: 368925 | D196: 266362.5 | E196: 185750 | F196: 140187.5 | I196: 225137.5 | J196: 162312.5 | K196: 117562.5 | L196: 87675 | N196: 213880.625
A197: 60 | C197: 392900 | D197: 283675 | E197: 197825 | F197: 149300 | I197: 240162.5 | J197: 173087.5 | K197: 125362.5 | L197: 93487.5 | N197: 228154.375
A198: 61 | C198: 418450 | D198: 302112.5 | E198: 210687.5 | F198: 159012.5 | I198: 255300 | J198: 183987.5 | K198: 133225 | L198: 99337.5 | N198: 242535
A199: 62 | C199: 445650 | D199: 321750 | E199: 224375 | F199: 169350 | I199: 270812.5 | J199: 195150 | K199: 141287.5 | L199: 105325 | N199: 257271.875
A200: 63 | C200: 474612.5 | D200: 342675 | E200: 238962.5 | F200: 180350 | I200: 293600 | J200: 211550 | K200: 153150 | L200: 114125 | N200: 278920
A201: 64 | C201: 505462.5 | D201: 364937.5 | E201: 254500 | F201: 192075 | I201: 319750 | J201: 230337.5 | K201: 166725 | L201: 124237.5 | N201: 303762.5
A202: 65 | C202: 538312.5 | D202: 388662.5 | E202: 271037.5 | F202: 204562.5 | I202: 340462.5 | J202: 245250 | K202: 177475 | L202: 132237.5 | N202: 323439.375
A203: 66 | C203: 573312.5 | D203: 413925 | E203: 288662.5 | F203: 217850 | I203: 361200 | J203: 260175 | K203: 188262.5 | L203: 140262.5 | N203: 343140
... 1352 more rows
